{"text_format":"1","workbook":"xlsx","n_sheets":7,"sheets":["シート構成","入力シート","★申請書","☆複数申請者","I","DATA","項目リスト"],"not_rendered":{"charts":0,"images":0,"macros":1,"external_links":0,"defined_names":33,"comments":0,"pivot_tables":0},"unopened":[],"bounds":{"document_bytes":16777216,"sheet_cells":100000,"rows_first":2000,"rows_last":500,"rows_between":2000,"halvings":0,"cell_chars":16384,"cell_head_chars":4096},"cells_cut":0,"cells_raw":0,"read":"whole","date_system":"1900"}

{"sheet":"シート構成","index":0,"n_rows":46,"n_cols":26,"rows_kept":46,"cut":false,"hidden":false,"merged":[[7,2,7,11],[20,12,20,17],[21,12,21,17],[20,18,20,45],[21,18,21,45],[19,12,19,24],[19,25,19,32]]}
["申請書作成シートについて",null,null,null,null,null,null,null,null,null,null,null,null,"2021/05/10 Ver.3.5"]
[]
["【現金取得者向け新築対象住宅証明書審査申請書（すまい給付金）の作成】"]
[null,"◆入力"]
[null,null,"入力シートに入力した内容が印刷用シートに反映されます。"]
[null,null,"当センターの「確認申請作成シート」で、確認申請書を作成されている場合は、その入力データを取り込んで、一部の入力を省略することが出来ます。"]
[]
[null,null,"「入力シート」へ"]
[]
[null,null,"［入力について］"]
[null,null,"網掛けしたセル部分が申請書に記載される部分です。網掛けの色に応じて入力してください。"]
[null,null,null,null,null,"この色のセルには直接入力またはチェックボックスにチェックを入れてください。"]
[null,null,null,null,null,"この色のセルはリストから該当する内容を選択してください。"]
[null,null,null,null,null,"この色のセルはリストから該当する内容を選択、または直接入力してください。"]
[null,null,null,null,null,"この色のセルは入力しないでください。"]
[null,null,null,null,null,"網掛け無し（枠線のみ）のセルは自動計算部分または定型部分となりますので入力できません。"]
[null,null,null,null,null,"網掛けのセルは確認申請ファイルからデータを取り込んているので、入力不要です。確認申請ファイルから内容を変更したい場合は、そのまま入力してください。"]
[]
[]
[null,null,null,null,null,null,null,null,null,null,null,null,"取り込み可能 確認申請ファイルのバージョン",null,null,null,null,null,null,null,null,null,null,null,null,"2021/01/01 Ver.13.0"]
[null,null,null,null,null,null,null,null,null,null,null,null,"取り込みファイル名"]
[null,null,null,null,null,null,null,null,null,null,null,null,"取り込み日時"]
[]
[]
[null,"◆印刷"]
[null,null,"印刷は下の印刷プレビューボタンを押して、プレビュー画面から行ってください。"]
[null,null,"追加の申請者がいる場合は、複数申請者の印刷も忘れないようにしてください。"]
[]
[]
[]
[]
[]
[]
[]
[]
["【注意事項】"]
[null,"○","各シートにシート間を移動するためのリンクが設定されています。"]
[null,null,"シート名を変更するとそのリンクが正常に作動しませんので、シート名の変更はしないでください。"]
[null,"○","各シートには必要箇所に保護（ロック）をかけています。"]
[null,null,"（このExcelはマクロを含んでいます。編集した場合にマクロが正常に作動しない場合がありますのでご注意ください。）"]
[]
["【参考】"]
[null,"第二面のデータについては、編集することが少なく数パターンに限定されると想定されます。"]
[null,"本シートにあらかじめ第二面のデータを入力したファイルを作成していただき、それを雛型として申請書を作成していただくと次回以降の入力手間が省けます。"]
[null,"数パターンある場合はファイルをコピーしてテンプレートを複数用意しておくと便利です。"]
[null,"（ファイル名は自由に変更していただいてかまいません。）"]

{"sheet":"入力シート","index":1,"n_rows":114,"n_cols":36,"rows_kept":114,"cut":false,"hidden":false,"merged":[[70,7,70,26],[104,18,104,20],[105,18,105,20],[106,18,106,20],[23,10,23,12],[71,9,71,11],[80,23,80,26],[79,8,79,18],[49,9,49,10],[72,7,72,19],[64,8,64,14],[50,8,50,26],[78,9,78,10],[78,15,78,18],[51,8,51,11],[52,8,52,26],[0,0,0,24],[13,12,13,13],[37,8,37,26],[39,8,39,26],[42,8,42,26],[38,8,38,26],[2,9,2,12],[0,26,0,32],[11,12,11,13],[14,12,14,13],[15,12,15,13],[7,8,7,11],[8,8,8,23],[27,8,27,26],[11,21,11,22],[14,21,14,22],[80,16,80,18],[80,9,80,10],[47,9,47,10],[85,8,85,14],[33,8,33,26],[34,8,34,26],[53,8,53,14],[78,22,78,25],[67,1,67,26],[43,8,43,26],[44,8,44,26],[56,8,56,26],[54,8,54,14],[49,16,49,18],[49,23,49,26],[47,22,47,25],[59,1,62,26],[2,1,2,4],[2,5,2,8],[47,15,47,18],[7,1,7,6],[8,1,8,6],[26,8,26,26],[28,8,28,26],[12,12,12,13],[48,8,48,18],[15,21,15,22],[12,21,12,22],[13,21,13,22],[32,8,32,26],[113,14,113,23],[110,14,110,24],[112,14,112,20],[111,14,111,20],[96,15,96,16],[96,8,96,14],[96,17,96,23],[98,8,98,24],[99,11,99,16],[99,17,99,19],[101,8,101,18],[99,9,99,10],[81,8,81,26],[82,8,82,11],[83,8,83,26],[94,5,94,7],[89,8,89,11],[91,16,91,19],[94,12,94,14],[94,8,94,10],[94,15,94,17],[92,16,92,19],[87,8,87,11],[84,8,84,14]]}
["入力シート（現金取得者向け新築対象住宅証明書審査申請書（すまい給付金））",null,null,null,null,null,null,null,null,null,null,null,null,null,null,null,null,null,null,null,null,null,null,null,null,null,"シートの構成に戻る"]
[]
[null,"地域情報",null,null,null,"第一面",null,null,null,"第二面"]
[]
["◆","地域情報"]
[]
["【地域情報】"]
[null,"【都道府県名】",null,null,null,null,null,null,null,null,null,null,null,null,null,null,null,null,null,null,null,null,null,null,null,null,null,null,null,null,null,null,null,null,null,{"$f":"SUMIF(DATA!F4:F347,I8,DATA!A4:A347)","v":0}]
[null,"【市町村名】",null,null,null,null,null,null,null,null,null,null,null,null,null,null,null,null,null,null,null,null,null,null,null,null,null,null,null,null,null,null,null,null,null,{"$f":"SUMIF(DATA!F4:F347,I9,DATA!A4:A347)","v":0}]
[]
[null,null,null,null,null,null,null,null,null,null,null,null,null,null,null,null,null,null,null,null,null,"参考値"]
[null,"【断熱地域区分】",null,null,null,null,null,null,null,null,"※１",null,null,null,"地域",null,null,null,null,null,null,{"$f":"VLOOKUP($AJ$9,DATA!$A$4:$AV$347,7,FALSE)","v":{"$error":"#N/A"}},null,"地域",null,null,null,null,null,null,null,null,null,null,null,{"$f":"IF(M12=V12,0,1)","v":{"$error":"#N/A"}}]
[null,"【年間日射量地域区分】",null,null,null,null,null,null,null,null,"※１",null,null,null,"区分",null,null,null,null,null,null,{"$f":"VLOOKUP($AJ$9,DATA!$A$4:$AV$347,8,FALSE)","v":{"$error":"#N/A"}},null,"区分",null,null,null,null,null,null,null,null,null,null,null,{"$f":"IF(M13=V13,0,1)","v":{"$error":"#N/A"}}]
[null,"【暖房期日射量地域区分】",null,null,null,null,null,null,null,null,"※１",null,null,null,"区分",null,null,null,null,null,null,{"$f":"VLOOKUP($AJ$9,DATA!$A$4:$AV$347,9,FALSE)","v":{"$error":"#N/A"}},null,"区分",null,null,null,null,null,null,null,null,null,null,null,{"$f":"IF(M14=V14,0,1)","v":{"$error":"#N/A"}}]
[null,"【基準風速】",null,null,null,null,null,null,null,null,"※２",null,null,null,"m/s",null,null,null,null,null,null,{"$f":"IF(VLOOKUP($AJ$9,DATA!$A$4:$AV$347,10,FALSE)=\"\",30,VLOOKUP($AJ$9,DATA!$A$4:$AV$347,10,FALSE))","v":{"$error":"#N/A"}},null,"m/s",null,null,null,null,null,null,null,null,null,null,null,{"$f":"IF(M15=V15,0,1)","v":{"$error":"#N/A"}}]
[null,"【垂直積雪量】",null,null,null,null,null,null,null,null,"※２",null,null,null,"cm",null,null,null,null,null,null,{"$f":"VLOOKUP($AJ$9,DATA!$A$4:$AV$347,11,FALSE)","v":{"$error":"#N/A"}},null,"cm",null,null,{"$f":"IF(VLOOKUP($AJ$9,DATA!$A$4:$AV$347,12,FALSE)=\"○\",\"多雪地域\",\"\")","v":{"$error":"#N/A"}},null,null,null,null,null,null,null,null,{"$f":"IF(M16=V16,0,1)","v":{"$error":"#N/A"}}]
[]
[null,null,null,"※１　「断熱等性能等級」 と 「一次エネルギー消費量等級」 の場合に入力"]
[null,null,null,"※２　「耐震等級」 の場合に入力"]
[]
["◆","現金取得者向け新築対象住宅証明書審査申請書（すまい給付金）"]
["第一面"]
[]
["【申請日】",null,null,null,null,null,null,null,"西暦",null,null,null,null,"年",null,"月",null,"日"]
[]
["【申請者１】",null,null,null,null,null,null,null,null,null,null,null,null,null,null,null,null,null,null,null,null,null,null,null,null,null,null,null,{"$f":"IF(I!I23=\"\",0,\"確認申請書 第二面 より\")","v":0}]
[null,"【氏名又は名称】",null,null,null,null,null,null,null,null,null,null,null,null,null,null,null,null,null,null,null,null,null,null,null,null,null,null,{"$f":"IF(AC26<>0,I!I23,0)","v":0}]
[null,null,null,null,null,null,null,null,null,null,null,null,null,null,null,null,null,null,null,null,null,null,null,null,null,null,null,null,{"$f":"IF(AC26<>0,I!I24,0)","v":0}]
[null,"【申請者住所】",null,null,null,null,null,null,null,null,null,null,null,null,null,null,null,null,null,null,null,null,null,null,null,null,null,null,{"$f":"IF(AC26<>0,I!I26,0)","v":0}]
[]
["【複数申請者の概要】"]
[null,"【申請者２】",null,null,null,null,null,null,"[☆複数依頼者]シートを印刷してください。",null,null,null,null,null,null,null,null,null,null,null,null,null,null,null,null,null,null,null,{"$f":"IF(I!I203=\"\",0,\"確認申請書 第二面 より\")","v":0}]
[null,null,"【氏名又は名称】",null,null,null,null,null,null,null,null,null,null,null,null,null,null,null,null,null,null,null,null,null,null,null,null,null,{"$f":"IF(AC32<>0,I!I203,0)","v":0}]
[null,null,null,null,null,null,null,null,null,null,null,null,null,null,null,null,null,null,null,null,null,null,null,null,null,null,null,null,{"$f":"IF(AC32<>0,I!I204,0)","v":0}]
[null,null,"【申請者住所】",null,null,null,null,null,null,null,null,null,null,null,null,null,null,null,null,null,null,null,null,null,null,null,null,null,{"$f":"IF(AC32<>0,I!I206,0)","v":0}]
[]
[null,"【申請者３】",null,null,null,null,null,null,"[☆複数依頼者]シートを印刷してください。",null,null,null,null,null,null,null,null,null,null,null,null,null,null,null,null,null,null,null,{"$f":"IF(I!I211=\"\",0,\"確認申請書 第二面 より\")","v":0}]
[null,null,"【氏名又は名称】",null,null,null,null,null,null,null,null,null,null,null,null,null,null,null,null,null,null,null,null,null,null,null,null,null,{"$f":"IF(AC37<>0,I!I211,0)","v":0}]
[null,null,null,null,null,null,null,null,null,null,null,null,null,null,null,null,null,null,null,null,null,null,null,null,null,null,null,null,{"$f":"IF(AC37<>0,I!I212,0)","v":0}]
[null,null,"【申請者住所】",null,null,null,null,null,null,null,null,null,null,null,null,null,null,null,null,null,null,null,null,null,null,null,null,null,{"$f":"IF(AC37<>0,I!I214,0)","v":0}]
[]
[null,"【申請者４】",null,null,null,null,null,null,"[☆複数依頼者]シートを印刷してください。",null,null,null,null,null,null,null,null,null,null,null,null,null,null,null,null,null,null,null,{"$f":"IF(I!I219=\"\",0,\"確認申請書 第二面 より\")","v":0}]
[null,null,"【氏名又は名称】",null,null,null,null,null,null,null,null,null,null,null,null,null,null,null,null,null,null,null,null,null,null,null,null,null,{"$f":"IF(AC42<>0,I!I219,0)","v":0}]
[null,null,null,null,null,null,null,null,null,null,null,null,null,null,null,null,null,null,null,null,null,null,null,null,null,null,null,null,{"$f":"IF(AC42<>0,I!I220,0)","v":0}]
[null,null,"【申請者住所】",null,null,null,null,null,null,null,null,null,null,null,null,null,null,null,null,null,null,null,null,null,null,null,null,null,{"$f":"IF(AC42<>0,I!I222,0)","v":0}]
[]
["【代理人】"]
[null,"【イ.資格】",null,null,null,null,null,null,"（",null,null,"）建築士",null,null,"（",null,null,null,null,"）登録第",null,null,null,null,null,null,"号",null,{"$f":"IF(I!I31=\"\",0,\"確認申請書 第二面 より\")","v":0}]
[null,"【ロ.氏名】"]
[null,"【ハ.建築士事務所名】",null,null,null,null,null,null,"（",null,null,"）建築士事務所（",null,null,null,null,null,null,null,"）知事登録第",null,null,null,null,null,null,null,"号"]
[]
[null,"【ニ.郵便番号】"]
[null,"【ホ.所在地】"]
[null,"【ヘ.電話番号】"]
[null,"【ト.ファックス番号】"]
[]
["【住宅の名称】"]
[]
["【住宅の所在地（地名地番）】",null,null,null,null,null,null,null,null,null,"改行は、[alt]+[Enter]"]
[null,null,null,null,null,null,null,null,null,null,null,null,null,null,null,null,null,null,null,null,null,null,null,null,null,null,null,null,{"$f":"IF(I!B228=\"\",0,\"確認申請書 第三面 より\")","v":0}]
[]
[]
[]
[]
["【住宅の建て方】"]
[]
["【住宅性能】"]
[]
[]
["【フラット３５Ｓと同等の基準を満たす当センターの評価書等の有無】",null,null,null,null,null,null,null,null,null,null,null,null,null,null,null,null,null,null,null,null,null,null,"□","有",null,{"$f":"IF(X70=\"□\",\"■\",\"□\")","v":"■"},"無"]
[null,"【評価書等の名称】"]
[null,"【交付年月日】",null,null,null,null,null,"西暦",null,null,null,null,"年",null,"月",null,"日"]
[null,"【交付番号】"]
[]
[]
["申請書 第二面"]
[]
["【設計者】"]
[null,"【イ.資格】",null,null,null,null,null,null,"（",null,null,"）建築士",null,null,"（",null,null,null,null,"）登録第",null,null,null,null,null,null,"号",null,{"$f":"IF(I!J41=\"\",0,\"確認申請書 第二面 より\")","v":0}]
[null,"【ロ.氏名】"]
[null,"【ハ.建築士事務所名】",null,null,null,null,null,null,"（",null,null,"）建築士事務所（",null,null,null,null,null,null,null,"）知事登録第",null,null,null,null,null,null,null,"号"]
[]
[null,"【ニ.郵便番号】"]
[null,"【ホ.所在地】"]
[null,"【ヘ.電話番号】"]
[null,"【ト.ファックス番号】"]
[]
["【敷地面積】",null,null,null,null,null,null,null,null,null,null,null,null,null,null,null,null,null,null,null,null,null,null,null,null,null,null,null,{"$f":"IF(I!K259=\"\",0,\"確認申請書　第三面 より\")","v":0}]
[]
["【建築面積】",null,null,null,null,null,null,null,null,null,null,null,null,null,null,null,null,null,null,null,null,null,null,null,null,null,null,null,{"$f":"IF(I!W273=\"\",0,\"確認申請書　第三面 より\")","v":0}]
[]
["【床面積の合計】",null,null,null,null,null,null,null,"建築基準法上の床面積",null,null,null,null,null,null,null,null,null,null,null,null,null,null,null,null,null,null,null,{"$f":"IF(I!W409=0,0,\"確認申請書　第四面 より\")","v":0}]
[null,null,null,null,null,null,null,null,"不動産登記上の床面積"]
[]
["【階数】",null,null,null,null,"（地上）",null,null,null,null,null,"階","（地下）",null,null,null,null,null,"階",null,null,null,null,null,null,null,null,null,{"$f":"IF(I!K375+I!K376=0,0,\"確認申請書　第四面 より\")","v":0}]
[]
["【構造】",null,null,null,null,null,null,null,null,null,null,null,null,null,null,"一部",null,null,null,null,null,null,null,null,null,null,null,null,{"$f":"IF(I!C357=\"\",0,\"確認申請書　第四面 より\")","v":0}]
[]
["【確認申請】"]
[null,"【確認済証番号】",null,null,null,null,null,null,"第",null,null,null,null,null,null,null,null,null,null,null,"号"]
[]
["【住宅性能評価】"]
[]
["【申請費確認項目】"]
[null,"【国交省が認める面積を用いない外皮性能計算】"]
[null,"【２種類以上の構造計算】"]
[null,"【限界耐力計算等の特殊な方法の構造計算】"]
[]
["【設計内容問い合わせ先】"]
[null,null,null,null,null,null,null,null,"□","設計者　　（ここにチェックしてもらった場合は、下記の記入は不要です。）"]
[null,null,null,null,null,null,null,null,"□","その他",null,null,"氏名"]
[null,null,null,null,null,null,null,null,null,null,null,null,"TEL"]
[null,null,null,null,null,null,null,null,null,null,null,null,"FAX"]
[null,null,null,null,null,null,null,null,null,null,null,null,"Email"]

{"sheet":"★申請書","index":2,"n_rows":121,"n_cols":38,"rows_kept":121,"cut":false,"hidden":false,"merged":[[117,9,117,31],[88,17,89,21],[115,6,115,7],[116,6,116,7],[115,9,115,16],[94,9,95,15],[94,18,95,24],[94,1,95,7],[116,9,116,16],[114,9,114,31],[114,5,114,7],[110,10,110,31],[64,26,64,30],[64,10,64,11],[66,27,66,31],[65,9,65,21],[92,11,93,13],[92,18,93,20],[84,9,85,13],[67,9,67,32],[74,2,74,7],[61,15,61,18],[32,2,39,8],[24,1,24,5],[42,9,42,32],[43,9,43,10],[43,12,43,13],[43,15,43,16],[68,9,68,12],[69,9,69,31],[70,9,70,16],[71,9,71,16],[64,17,64,21],[66,10,66,11],[66,18,66,21],[57,30,58,32],[57,1,58,3],[57,4,58,6],[57,7,58,11],[24,6,27,33],[44,9,44,32],[57,27,58,29],[75,2,75,7],[96,1,97,32],[88,1,89,7],[90,17,91,21],[88,9,89,16],[90,9,91,15],[84,1,85,7],[86,9,87,13],[94,16,95,17],[92,1,93,7],[86,1,87,7],[1,7,1,26],[7,17,8,33],[10,17,10,31],[9,17,9,33],[12,17,13,33],[0,30,1,31],[0,32,1,33],[3,25,3,26],[3,28,3,29],[3,31,3,32],[7,8,7,16],[8,8,8,16],[9,8,9,16],[12,8,12,16],[13,8,13,16],[14,8,14,16],[41,1,41,21],[15,17,15,31],[16,1,19,32],[14,17,14,33],[20,16,21,17],[22,6,22,28]]}
[null,null,null,null,null,null,null,null,null,null,null,null,null,null,null,null,null,null,null,null,null,null,null,null,null,null,null,null,null,null,"正",null,"副",null,null,1]
[null,null,null,null,null,null,null,"現金取得者向け新築対象住宅証明書審査申請書",null,null,null,null,null,null,null,null,null,null,null,null,null,null,null,null,null,null,null,null,null,null,null,null,null,null,null,1]
[null,null,null,null,null,null,null,null,null,null,null,null,null,null,null,null,null,null,null,null,null,null,null,null,null,null,null,null,null,null,null,null,null,null,null,1]
[null,null,null,null,null,null,null,null,null,null,null,null,null,null,null,null,null,null,null,null,null,null,null,null,null,{"$f":"入力シート!K24","v":0},null,"年",{"$f":"入力シート!O24","v":0},null,"月",{"$f":"入力シート!Q24","v":0},null,"日",null,1]
[null,null,null,null,null,null,null,null,null,null,null,null,null,null,null,null,null,null,null,null,null,null,null,null,null,null,null,null,null,null,null,null,null,null,null,1]
[null,"一般財団法人 愛知県建築住宅センター 理事長　様",null,null,null,null,null,null,null,null,null,null,null,null,null,null,null,null,null,null,null,null,null,null,null,null,null,null,null,null,null,null,null,null,null,1]
[null,null,null,null,null,null,null,null,null,null,null,null,null,null,null,null,null,null,null,null,null,null,null,null,null,null,null,null,null,null,null,null,null,null,null,1]
[null,null,null,null,null,null,null,null,"証明申請者の住所又は",null,null,null,null,null,null,null,null,{"$f":"IF(AL8=0,\"\",AL8)","v":""},null,null,null,null,null,null,null,null,null,null,null,null,null,null,null,null,null,1,null,{"$f":"IF(入力シート!I29=\"\",入力シート!AC29,入力シート!I29)","v":0}]
[null,null,null,null,null,null,null,null,"主たる事務所の所在地",null,null,null,null,null,null,null,null,null,null,null,null,null,null,null,null,null,null,null,null,null,null,null,null,null,null,1]
[null,null,null,null,null,null,null,null,"証明申請者の氏名又は名称",null,null,null,null,null,null,null,null,{"$f":"IF(AL10=0,\"\",AL10)","v":""},null,null,null,null,null,null,null,null,null,null,null,null,null,null,null,null,null,1,null,{"$f":"IF(入力シート!I27=\"\",入力シート!AC27,入力シート!I27)","v":0}]
[null,null,null,null,null,null,null,null,null,null,null,null,null,null,null,null,null,{"$f":"IF(AL11=0,\"\",AL11)","v":""},null,null,null,null,null,null,null,null,null,null,null,null,null,null,null,null,null,1,null,{"$f":"IF(入力シート!I28=\"\",入力シート!AC28,入力シート!I28)","v":0}]
[null,null,null,null,null,null,null,null,null,null,null,null,null,null,null,null,null,null,null,null,null,null,null,null,null,null,null,null,null,null,null,null,null,null,null,1]
[null,null,null,null,null,null,null,null,"代理人の住所又は",null,null,null,null,null,null,null,null,{"$f":"IF(AL13=0,\"\",AL13)","v":""},null,null,null,null,null,null,null,null,null,null,null,null,null,null,null,null,null,1,null,{"$f":"IF(入力シート!I53=\"\",I!I35,入力シート!I53)","v":0}]
[null,null,null,null,null,null,null,null,"主たる事務所の所在地",null,null,null,null,null,null,null,null,null,null,null,null,null,null,null,null,null,null,null,null,null,null,null,null,null,null,1]
[null,null,null,null,null,null,null,null,"代理人の氏名又は名称",null,null,null,null,null,null,null,null,{"$f":"IF(AL15=0,\"\",AL15)","v":""},null,null,null,null,null,null,null,null,null,null,null,null,null,null,null,null,null,1,null,{"$f":"IF(入力シート!I51=\"\",I!I33,入力シート!I51)","v":0}]
[null,null,null,null,null,null,null,null,null,null,null,null,null,null,null,null,null,{"$f":"IF(AL16=0,\"\",AL16)","v":""},null,null,null,null,null,null,null,null,null,null,null,null,null,null,null,null,null,1,null,{"$f":"IF(入力シート!I49=\"\",I!I31,入力シート!I49)","v":0}]
[null,"　現金取得者向け新築対象住宅証明書発行のための適合審査を申請します。\n　この申請書及び提出図書に記載の事項は、事実に相違ありません。\n　なお、依頼者は現金取得者向け新築対象住宅証明書発行の手続きに関する一切の権限を代理人に委任します。",null,null,null,null,null,null,null,null,null,null,null,null,null,null,null,null,null,null,null,null,null,null,null,null,null,null,null,null,null,null,null,null,null,1]
[null,null,null,null,null,null,null,null,null,null,null,null,null,null,null,null,null,null,null,null,null,null,null,null,null,null,null,null,null,null,null,null,null,null,null,1]
[null,null,null,null,null,null,null,null,null,null,null,null,null,null,null,null,null,null,null,null,null,null,null,null,null,null,null,null,null,null,null,null,null,null,null,1]
[null,null,null,null,null,null,null,null,null,null,null,null,null,null,null,null,null,null,null,null,null,null,null,null,null,null,null,null,null,null,null,null,null,null,null,1]
[null,null,null,null,null,null,null,null,null,null,null,null,null,null,null,null,"記",null,null,null,null,null,null,null,null,null,null,null,null,null,null,null,null,null,null,1]
[null,null,null,null,null,null,null,null,null,null,null,null,null,null,null,null,null,null,null,null,null,null,null,null,null,null,null,null,null,null,null,null,null,null,null,1]
[null,"【住宅の名称】",null,null,null,null,{"$f":"入力シート!I57","v":0},null,null,null,null,null,null,null,null,null,null,null,null,null,null,null,null,null,null,null,null,null,null,null,null,null,null,null,null,1]
[null,null,null,null,null,null,null,null,null,null,null,null,null,null,null,null,null,null,null,null,null,null,null,null,null,null,null,null,null,null,null,null,null,null,null,1]
[null,"【住宅の所在地】",null,null,null,null,{"$f":"IF(入力シート!B60=\"\",I!B228,入力シート!B60)","v":0},null,null,null,null,null,null,null,null,null,null,null,null,null,null,null,null,null,null,null,null,null,null,null,null,null,null,null,null,1]
[null,"(地名・地番)",null,null,null,null,null,null,null,null,null,null,null,null,null,null,null,null,null,null,null,null,null,null,null,null,null,null,null,null,null,null,null,null,null,1]
[null,null,null,null,null,null,null,null,null,null,null,null,null,null,null,null,null,null,null,null,null,null,null,null,null,null,null,null,null,null,null,null,null,null,null,1]
[null,null,null,null,null,null,null,null,null,null,null,null,null,null,null,null,null,null,null,null,null,null,null,null,null,null,null,null,null,null,null,null,null,null,null,1]
[null,null,null,null,null,null,null,null,null,null,null,null,null,null,null,null,null,null,null,null,null,null,null,null,null,null,null,null,null,null,null,null,null,null,null,1]
[null,"【住宅の建て方】",null,null,null,null,null,null,null,{"$f":"IF(入力シート!I65=K30,\"■\",\"□\")","v":"□"},"一戸建ての住宅",null,null,null,null,null,{"$f":"IF(入力シート!I65=R30,\"■\",\"□\")","v":"□"},"共同住宅等",null,null,null,null,null,null,null,null,null,null,null,null,null,null,null,null,null,1]
[null,null,null,null,null,null,null,null,null,null,null,null,null,null,null,null,null,null,null,null,null,null,null,null,null,null,null,null,null,null,null,null,null,null,null,1]
[null,"【住宅性能】",null,null,null,null,null,null,null,null,null,null,null,null,null,null,null,null,null,null,null,null,null,null,null,null,null,null,null,null,null,null,null,null,null,1]
[null,null,"住宅の新築\n又は\n新築住宅の取得",null,null,null,null,null,null,{"$f":"IF(入力シート!B68=K33,\"■\",\"□\")","v":"□"},"断熱等性能等級の等級４",null,null,null,null,null,null,null,null,null,null,null,null,null,null,null,null,null,null,null,null,null,null,null,null,1]
[null,null,null,null,null,null,null,null,null,{"$f":"IF(入力シート!B68=K34,\"■\",\"□\")","v":"□"},"一次エネルギー消費量等級４以上",null,null,null,null,null,null,null,null,null,null,null,null,null,null,null,null,null,null,null,null,null,null,null,null,1]
[null,null,null,null,null,null,null,null,null,{"$f":"IF(入力シート!B68=\"劣化対策等級３で、かつ、維持管理対策等級２以上（共同住宅等については一定の更新対策が必要）\",\"■\",\"□\")","v":"□"},"劣化対策等級３で、かつ、維持管理対策等級２以上",null,null,null,null,null,null,null,null,null,null,null,null,null,null,null,null,null,null,null,null,null,null,null,null,1]
[null,null,null,null,null,null,null,null,null,null,"（共同住宅等については一定の更新対策が必要）",null,null,null,null,null,null,null,null,null,null,null,null,null,null,null,null,null,null,null,null,null,null,null,null,1]
[null,null,null,null,null,null,null,null,null,{"$f":"IF(OR(入力シート!B68=\"耐震等級（構造躯体の倒壊等防止）の等級２\",入力シート!B68=\"耐震等級（構造躯体の倒壊等防止）の等級３\"),\"■\",\"□\")","v":"□"},"耐震等級（構造躯体の倒壊等防止）の等級２以上",null,null,null,null,null,null,null,null,null,null,null,null,null,null,null,null,null,null,null,null,null,null,null,null,1]
[null,null,null,null,null,null,null,null,null,null,"（耐震等級３に係る適合審査を受けようとする場合",null,null,null,null,null,null,null,null,null,null,null,null,null,null,null,{"$f":"IF(入力シート!B68=\"耐震等級（構造躯体の倒壊等防止）の等級３\",\"■\",\"□\")","v":"□"},"耐震等級３）",null,null,null,null,null,null,null,1]
[null,null,null,null,null,null,null,null,null,{"$f":"IF(入力シート!B68=K39,\"■\",\"□\")","v":"□"},"免震建築物",null,null,null,null,null,null,null,null,null,null,null,null,null,null,null,null,null,null,null,null,null,null,null,null,1]
[null,null,null,null,null,null,null,null,null,{"$f":"IF(入力シート!B68=K40,\"■\",\"□\")","v":"□"},"高齢者等配慮対策等級３以上の住宅",null,null,null,null,null,null,null,null,null,null,null,null,null,null,null,null,null,null,null,null,null,null,null,null,1]
[null,null,null,null,null,null,null,null,null,null,null,null,null,null,null,null,null,null,null,null,null,null,null,null,null,null,null,null,null,null,null,null,null,null,null,1]
[null,"【フラット３５Ｓと同等の基準を満たす当センターの評価書等の有無】",null,null,null,null,null,null,null,null,null,null,null,null,null,null,null,null,null,null,null,null,{"$f":"入力シート!X70","v":"□"},"有",null,{"$f":"IF(入力シート!X70=\"□\",\"■\",\"□\")","v":"■"},"無",null,null,null,null,null,null,null,null,1]
[null,null,"【評価書等の名称】",null,null,null,null,null,null,{"$f":"入力シート!H71","v":0},null,null,null,null,null,null,null,null,null,null,null,null,null,null,null,null,null,null,null,null,null,null,null,null,null,1]
[null,null,"【交付年月日】",null,null,null,null,null,null,{"$f":"入力シート!J72","v":0},null,"年",{"$f":"入力シート!N72","v":0},null,"月",{"$f":"入力シート!P72","v":0},null,"日",null,null,null,null,null,null,null,null,null,null,null,null,null,null,null,null,null,1]
[null,null,"【交付番号】",null,null,null,null,null,null,{"$f":"入力シート!H73","v":0},null,null,null,null,null,null,null,null,null,null,null,null,null,null,null,null,null,null,null,null,null,null,null,null,null,1]
[null,null,null,null,null,null,null,null,null,null,null,null,null,null,null,null,null,null,null,null,null,null,null,null,null,null,null,null,null,null,null,null,null,null,null,1]
[null,null,null,null,null,null,null,null,null,null,null,null,null,null,null,null,null,null,null,null,null,null,null,null,null,null,null,null,null,null,null,null,null,null,null,1]
[null,null,null,null,null,null,null,null,null,null,null,null,null,null,null,null,null,null,null,null,null,null,null,null,null,null,null,null,null,null,null,null,null,null,null,1]
[null,null,null,null,null,null,null,null,null,null,null,null,null,null,null,null,null,null,null,null,null,null,null,null,null,null,null,null,null,null,null,null,null,null,null,1]
[null,null,null,null,null,null,null,null,null,null,null,null,null,null,null,null,null,null,null,null,null,null,null,null,null,null,null,null,null,null,null,null,null,null,null,1]
[null,"※受付欄",null,null,null,null,null,null,null,null,null,null,null,null,null,null,null,"※料金欄",null,null,null,null,null,null,null,null,null,null,null,null,null,null,null,null,null,1]
[null,null,null,null,null,null,null,null,null,null,null,null,null,null,null,null,null,null,null,null,null,null,null,null,null,null,null,null,null,null,null,null,null,null,null,1]
[null,null,null,null,null,null,null,null,null,null,null,null,null,null,null,null,null,null,null,null,null,null,null,null,null,null,null,null,null,null,null,null,null,null,null,1]
[null,null,null,null,null,null,null,null,null,null,null,null,null,null,null,null,null,null,null,null,null,null,null,null,null,null,null,null,null,null,null,null,null,null,null,1]
[null,null,null,null,null,null,null,null,null,null,null,null,null,null,null,null,null,null,null,null,null,null,null,null,null,null,null,null,null,null,null,null,null,null,null,1]
[null,null,null,null,null,null,null,null,null,"申請受理者氏名",null,null,null,null,null,null,null,null,null,null,null,null,null,null,null,null,null,null,null,null,null,null,null,null,null,1]
[null,null,null,null,null,null,null,null,null,null,null,null,null,null,null,null,null,null,null,null,null,null,null,null,null,null,null,null,null,null,null,null,null,null,null,1]
[null,"受領\n月日",null,null,"／",null,null,"受領者氏名\n連絡先",null,null,null,null,null,null,null,null,null,null,null,null,null,null,null,null,null,null,null,"受領者",null,null,null,null,null,null,null,1]
[null,null,null,null,null,null,null,null,null,null,null,null,null,"TEL（　　　　　　）　　　　　　－",null,null,null,null,null,null,null,null,null,null,null,null,null,null,null,null,null,null,null,null,null,1]
[null,null,"※印欄には記入しないでください。",null,null,null,null,null,null,null,null,null,null,null,null,null,null,null,null,null,null,null,null,null,null,null,null,null,null,null,null,null,null,null,null,1]
[null,null,null,null,null,null,null,null,null,null,null,null,null,null,null,null,null,null,null,null,null,null,null,null,null,null,null,null,null,null,null,null,null,null,null,1]
[null,null,null,null,null,null,null,null,null,null,null,null,null,null,null,"（第二面）",null,null,null,null,null,null,null,null,null,null,null,null,null,null,null,null,null,null,null,1]
[null,null,null,null,null,null,null,null,null,null,null,null,null,null,null,null,null,null,null,null,null,null,null,null,null,null,null,null,null,null,null,null,null,null,null,1]
["【設計者】",null,null,null,null,null,null,null,null,null,null,null,null,null,null,null,null,null,null,null,null,null,null,null,null,null,null,null,null,null,null,null,null,null,null,1]
[null,null,"【イ.資格】",null,null,null,null,null,null,"（",{"$f":"IF(入力シート!J79=\"\",I!J41,入力シート!J79)","v":0},null,"）建築士",null,null,null,"（",{"$f":"IF(入力シート!P79=\"\",I!P41,入力シート!P79)","v":0},null,null,null,null,"）登録第",null,null,null,{"$f":"IF(入力シート!W79=\"\",I!W41,入力シート!W79)","v":0},null,null,null,null,"号",null,null,null,1]
[null,null,"【ロ.氏名】",null,null,null,null,null,null,{"$f":"IF(入力シート!I80=\"\",I!I42,入力シート!I80)","v":0},null,null,null,null,null,null,null,null,null,null,null,null,null,null,null,null,null,null,null,null,null,null,null,null,null,1]
[null,null,"【ハ.建築士事務所名】",null,null,null,null,null,null,"（",{"$f":"IF(入力シート!J81=\"\",I!J43,入力シート!J81)","v":0},null,"）建築士事務所",null,null,null,null,"（",{"$f":"IF(入力シート!Q81=\"\",I!Q43,入力シート!Q81)","v":0},null,null,null,"）知事登録第",null,null,null,null,{"$f":"IF(入力シート!X81=\"\",I!X43,入力シート!X81)","v":0},null,null,null,null,"号",null,null,1]
[null,null,null,null,null,null,null,null,null,{"$f":"IF(入力シート!I82=\"\",I!I44,入力シート!I82)","v":0},null,null,null,null,null,null,null,null,null,null,null,null,null,null,null,null,null,null,null,null,null,null,null,null,null,1]
[null,null,"【ニ.郵便番号】",null,null,null,null,null,null,{"$f":"IF(入力シート!I83=\"\",I!I45,入力シート!I83)","v":0},null,null,null,null,null,null,null,null,null,null,null,null,null,null,null,null,null,null,null,null,null,null,null,null,null,1]
[null,null,"【ホ.所在地】",null,null,null,null,null,null,{"$f":"IF(入力シート!I84=\"\",I!I46,入力シート!I84)","v":0},null,null,null,null,null,null,null,null,null,null,null,null,null,null,null,null,null,null,null,null,null,null,null,null,null,1]
[null,null,"【ヘ.電話番号】",null,null,null,null,null,null,{"$f":"IF(入力シート!I85=\"\",I!I47,入力シート!I85)","v":0},null,null,null,null,null,null,null,null,null,null,null,null,null,null,null,null,null,null,null,null,null,null,null,null,null,1]
[null,null,"【ト.ファックス番号】",null,null,null,null,null,null,{"$f":"入力シート!I86","v":0},null,null,null,null,null,null,null,null,null,null,null,null,null,null,null,null,null,null,null,null,null,null,null,null,null,1]
[null,null,null,null,null,null,null,null,null,null,null,null,null,null,null,null,null,null,null,null,null,null,null,null,null,null,null,null,null,null,null,null,null,null,null,1]
["【地域情報】",null,null,null,null,null,null,null,null,null,null,null,null,null,null,null,null,null,null,null,null,null,null,null,null,null,null,null,null,null,null,null,null,null,null,1]
[null,null,"【都道府県名】",null,null,null,null,null,null,null,null,null,{"$f":"入力シート!I8","v":0},null,null,null,null,null,null,null,null,null,null,null,null,null,null,null,null,null,null,null,null,null,null,1]
[null,null,"【市町村名】",null,null,null,null,null,null,null,null,null,{"$f":"入力シート!I9","v":0},null,null,null,null,null,null,null,null,null,null,null,null,null,null,null,null,null,null,null,null,null,null,1]
[null,null,null,null,null,null,null,null,null,null,null,null,null,null,null,null,null,null,null,null,null,null,null,null,null,null,null,null,null,null,null,null,null,null,null,1]
[null,null,"【断熱地域区分】",null,null,null,null,null,null,null,null,null,{"$f":"IF(入力シート!AJ12=0,入力シート!M12,入力シート!M12&\"　(\"&入力シート!V12&\")\")&\"　地域\"","v":{"$error":"#N/A"}},null,null,null,null,null,null,null,null,null,null,null,null,{"$f":"IF(入力シート!AJ12=0,\"\",\"※カッコ内は参考値\")","v":{"$error":"#N/A"}},null,null,null,null,null,null,null,null,null,1]
[null,null,"【年間日射量地域区分】",null,null,null,null,null,null,null,null,null,{"$f":"IF(入力シート!AJ13=0,入力シート!M13,入力シート!M13&\"　(\"&入力シート!V13&\")\")&\"　区分\"","v":{"$error":"#N/A"}},null,null,null,null,null,null,null,null,null,null,null,null,{"$f":"IF(入力シート!AJ13=0,\"\",\"※カッコ内は参考値\")","v":{"$error":"#N/A"}},null,null,null,null,null,null,null,null,null,1]
[null,null,"【暖房期日射量地域区分】",null,null,null,null,null,null,null,null,null,{"$f":"IF(入力シート!AJ14=0,入力シート!M14,入力シート!M14&\"　(\"&入力シート!V14&\")\")&\"　区分\"","v":{"$error":"#N/A"}},null,null,null,null,null,null,null,null,null,null,null,null,{"$f":"IF(入力シート!AJ14=0,\"\",\"※カッコ内は参考値\")","v":{"$error":"#N/A"}},null,null,null,null,null,null,null,null,null,1]
[null,null,"【基準風速】",null,null,null,null,null,null,null,null,null,{"$f":"IF(入力シート!AJ15=0,入力シート!M15,入力シート!M15&\"　(\"&入力シート!V15&\")\")&\"　m/s\"","v":{"$error":"#N/A"}},null,null,null,null,null,null,null,null,null,null,null,null,{"$f":"IF(入力シート!AJ15=0,\"\",\"※カッコ内は参考値\")","v":{"$error":"#N/A"}},null,null,null,null,null,null,null,null,null,1]
[null,null,"【垂直積雪量】",null,null,null,null,null,null,null,null,null,{"$f":"IF(入力シート!AJ16=0,入力シート!M16,入力シート!M16&\"　(\"&入力シート!V16&\")\")&\"　cm\"","v":{"$error":"#N/A"}},null,null,null,null,null,{"$f":"入力シート!AA16","v":{"$error":"#N/A"}},null,null,null,null,null,null,{"$f":"IF(入力シート!AJ16=0,\"\",\"※カッコ内は参考値\")","v":{"$error":"#N/A"}},null,null,null,null,null,null,null,null,null,1]
[null,null,null,null,null,null,null,null,null,null,null,null,null,null,null,null,null,null,null,null,null,null,null,null,null,null,null,null,null,null,null,null,null,null,null,1]
["【家屋の位置、規模、構造等に関する事項】",null,null,null,null,null,null,null,null,null,null,null,null,null,null,null,null,null,null,null,null,null,null,null,null,null,null,null,null,null,null,null,null,null,null,1]
[null,"敷地面積",null,null,null,null,null,null,null,{"$f":"IF(入力シート!I88=\"\",I!K259,入力シート!I88)","v":0},null,null,null,null,null,null,null,null,null,null,null,null,null,null,null,null,null,null,null,null,null,null,null,null,null,1]
[null,null,null,null,null,null,null,null,null,null,null,null,null,null,"㎡",null,null,null,null,null,null,null,null,null,null,null,null,null,null,null,null,null,null,null,null,1]
[null,"建築面積",null,null,null,null,null,null,null,{"$f":"IF(入力シート!I90=\"\",I!W273,入力シート!I90)","v":0},null,null,null,null,null,null,null,null,null,null,null,null,null,null,null,null,null,null,null,null,null,null,null,null,null,1]
[null,null,null,null,null,null,null,null,null,null,null,null,null,null,"㎡",null,null,null,null,null,null,null,null,null,null,null,null,null,null,null,null,null,null,null,null,1]
[null,"延床面積",null,null,null,null,null,null,null,"建築基準法上の床面積",null,null,null,null,null,null,null,{"$f":"IF(入力シート!Q92=\"\",I!W409,入力シート!Q92)","v":0},null,null,null,null,null,null,null,null,null,null,null,null,null,null,null,null,null,1]
[null,null,null,null,null,null,null,null,null,null,null,null,null,null,null,null,null,null,null,null,null,null,"㎡",null,null,null,null,null,null,null,null,null,null,null,null,1]
[null,null,null,null,null,null,null,null,null,"不動産登記上の床面積",null,null,null,null,null,null,"※",{"$f":"入力シート!Q93","v":0},null,null,null,null,null,null,null,null,null,null,null,null,null,null,null,null,null,1]
[null,null,null,null,null,null,null,null,null,null,null,null,null,null,null,null,null,null,null,null,null,null,"㎡",null,null,null,null,null,null,null,null,null,null,null,null,1]
[null,"階数",null,null,null,null,null,null,null,null,null,{"$f":"IF(入力シート!I95=\"\",I!K375,入力シート!I95)","v":0},null,null,null,null,null,null,{"$f":"IF(入力シート!P95=\"\",I!K376,入力シート!P95)","v":0},null,null,null,null,null,null,null,null,null,null,null,null,null,null,null,null,1]
[null,null,null,null,null,null,null,null,"（地上）",null,null,null,null,null,"階","（地下）",null,null,null,null,null,"階",null,null,null,null,null,null,null,null,null,null,null,null,null,1]
[null,"構造",null,null,null,null,null,null,null,{"$f":"IF(入力シート!I97=\"\",I!C357,入力シート!I97)","v":0},null,null,null,null,null,null,"一部",null,{"$f":"IF(入力シート!R97=\"\",I!L357,入力シート!R97)","v":0},null,null,null,null,null,null,null,null,null,null,null,null,null,null,null,null,1]
[null,null,null,null,null,null,null,null,null,null,null,null,null,null,null,null,null,null,null,null,null,null,null,null,null,null,null,null,null,null,null,null,null,null,null,1]
[null,"※不動産登記上の床面積は、戸建住宅の場合は壁芯（壁の中心で囲まれた部分）、区分所有建物の場合は内法（壁その他区画の内側線）です。",null,null,null,null,null,null,null,null,null,null,null,null,null,null,null,null,null,null,null,null,null,null,null,null,null,null,null,null,null,null,null,null,null,1]
[null,null,null,null,null,null,null,null,null,null,null,null,null,null,null,null,null,null,null,null,null,null,null,null,null,null,null,null,null,null,null,null,null,null,null,1]
[null,null,null,null,null,null,null,null,null,null,null,null,null,null,null,null,null,null,null,null,null,null,null,null,null,null,null,null,null,null,null,null,null,null,null,1]
["【当センターへの申請】",null,null,null,null,null,null,null,null,null,null,null,null,null,null,null,null,null,null,null,null,null,null,null,null,null,null,null,null,null,null,null,null,null,null,1]
[null,null,"【確認申請】",null,null,null,null,null,null,{"$f":"入力シート!I99","v":0},null,null,null,null,null,null,null,null,null,null,null,null,null,null,null,null,null,null,null,null,null,null,null,null,null,1]
[null,null,null,"【確認済証番号】",null,null,null,null,null,{"$f":"IF(入力シート!R100=\"\",\"\",入力シート!I100&入力シート!J100&入力シート!L100&入力シート!R100&入力シート!U100)","v":""},null,null,null,null,null,null,null,null,null,null,null,null,null,null,null,null,null,null,null,null,null,null,null,null,null,1]
[null,null,null,null,null,null,null,null,null,null,null,null,null,null,null,null,null,null,null,null,null,null,null,null,null,null,null,null,null,null,null,null,null,null,null,1]
[null,null,"【設計住宅性能評価】",null,null,null,null,null,null,{"$f":"入力シート!I102","v":0},null,null,null,null,null,null,null,null,null,null,null,null,null,null,null,null,null,null,null,null,null,null,null,null,null,1]
[null,null,null,null,null,null,null,null,null,null,null,null,null,null,null,null,null,null,null,null,null,null,null,null,null,null,null,null,null,null,null,null,null,null,null,1]
["【申請費確認項目】",null,null,null,null,null,null,null,null,null,null,null,null,null,null,null,null,null,null,null,null,null,null,null,null,null,null,null,null,null,null,null,null,null,null,1]
[null,"【国交省が認める面積を用いない外皮性能計算】",null,null,null,null,null,null,null,null,null,null,null,null,null,null,null,null,null,null,null,{"$f":"入力シート!S105","v":0},null,null,null,null,null,null,null,null,null,null,null,null,null,1]
[null,"【２種類以上の構造計算】",null,null,null,null,null,null,null,null,null,null,null,null,null,null,null,null,null,null,null,{"$f":"入力シート!S106","v":0},null,null,null,null,null,null,null,null,null,null,null,null,null,1]
[null,"【限界耐力計算等の特殊な方法の構造計算】",null,null,null,null,null,null,null,null,null,null,null,null,null,null,null,null,null,null,null,{"$f":"入力シート!S107","v":0},null,null,null,null,null,null,null,null,null,null,null,null,null,1]
[null,"【センターが発行した次のいずれかの証明基準が同一な評価書等と併願】",null,null,null,null,null,null,null,null,null,null,null,null,null,null,null,null,null,null,null,null,null,null,null,null,null,null,null,null,null,null,null,null,null,1]
[null,null,null,null,null,null,null,null,null,"（",{"$f":"入力シート!H71","v":0},null,null,null,null,null,null,null,null,null,null,null,null,null,null,null,null,null,null,null,null,null,"）",null,null,1]
[null,null,null,null,null,null,null,null,null,null,null,null,null,null,null,null,null,null,null,null,null,null,null,null,null,null,null,null,null,null,null,null,null,null,null,1]
["【設計内容問い合わせ先】",null,null,null,null,null,null,null,null,null,null,null,null,null,null,null,null,null,null,null,null,null,null,null,null,null,null,null,null,null,null,null,null,null,null,1]
[null,{"$f":"入力シート!I110","v":"□"},"設計者　　（ここにチェックしてもらった場合は、下記の記入は不要です。）",null,null,null,null,null,null,null,null,null,null,null,null,null,null,null,null,null,null,null,null,null,null,null,null,null,null,null,null,null,null,null,null,1]
[null,{"$f":"入力シート!I111","v":"□"},"その他",null,null,"氏名",null,null,null,{"$f":"入力シート!O111","v":0},null,null,null,null,null,null,null,null,null,null,null,null,null,null,null,null,null,null,null,null,null,null,null,null,null,1]
[null,null,null,null,null,null,"TEL",null,null,{"$f":"入力シート!O112","v":0},null,null,null,null,null,null,null,null,null,null,null,null,null,null,null,null,null,null,null,null,null,null,null,null,null,1]
[null,null,null,null,null,null,"FAX",null,null,{"$f":"入力シート!O113","v":0},null,null,null,null,null,null,null,null,null,null,null,null,null,null,null,null,null,null,null,null,null,null,null,null,null,1]
[null,null,null,null,null,null,"Email",null,null,{"$f":"入力シート!O114","v":0},null,null,null,null,null,null,null,null,null,null,null,null,null,null,null,null,null,null,null,null,null,null,null,null,null,1]
[null,null,null,null,null,null,null,null,null,null,null,null,null,null,null,null,null,null,null,null,null,null,null,null,null,null,null,null,null,null,null,null,null,null,null,1]
[null,null,null,null,null,null,null,null,null,null,null,null,null,null,null,null,null,null,null,null,null,null,null,null,null,null,null,null,null,null,null,null,null,null,null,1]
[null,null,null,null,null,null,null,null,null,null,null,null,null,null,null,null,null,null,null,null,null,null,null,null,null,null,null,null,null,null,null,null,null,null,null,1]

{"sheet":"☆複数申請者","index":3,"n_rows":23,"n_cols":36,"rows_kept":23,"cut":false,"hidden":false,"merged":[[19,12,20,29],[21,12,21,29],[21,30,22,30],[22,12,22,29],[16,30,17,30],[17,12,17,29],[14,12,15,29],[16,12,16,29],[0,0,0,33],[9,12,10,29],[11,12,11,29],[11,30,12,30],[12,12,12,29],[1,0,1,33]]}
["現金取得者向け新築対象住宅証明書審査申請　（複数申請者）"]
["（すまい給付金）"]
[]
[]
[]
[]
[]
[null,null,"複数申請者の概要"]
[]
[null,null,"申請者２",null,null,null,null,null,null,null,"住所",null,{"$f":"IF(AJ10=0,\"\",AJ10)","v":""},null,null,null,null,null,null,null,null,null,null,null,null,null,null,null,null,null,null,null,null,null,null,{"$f":"IF(入力シート!I35=\"\",I!I206,入力シート!I35)","v":0}]
[]
[null,null,null,null,null,null,null,null,null,null,"氏名",null,{"$f":"IF(AJ12=0,\"\",AJ12)","v":""},null,null,null,null,null,null,null,null,null,null,null,null,null,null,null,null,null,null,null,null,null,null,{"$f":"IF(入力シート!I33=\"\",I!I203,入力シート!I33)","v":0}]
[null,null,null,null,null,null,null,null,null,null,null,null,{"$f":"IF(AJ13=0,\"\",AJ13)","v":""},null,null,null,null,null,null,null,null,null,null,null,null,null,null,null,null,null,null,null,null,null,null,{"$f":"IF(入力シート!I34=\"\",I!I204,入力シート!I34)","v":0}]
[]
[null,null,"申請者３",null,null,null,null,null,null,null,"住所",null,{"$f":"IF(AJ15=0,\"\",AJ15)","v":""},null,null,null,null,null,null,null,null,null,null,null,null,null,null,null,null,null,null,null,null,null,null,{"$f":"IF(入力シート!I40=\"\",I!I214,入力シート!I40)","v":0}]
[]
[null,null,null,null,null,null,null,null,null,null,"氏名",null,{"$f":"IF(AJ17=0,\"\",AJ17)","v":""},null,null,null,null,null,null,null,null,null,null,null,null,null,null,null,null,null,null,null,null,null,null,{"$f":"IF(入力シート!I38=\"\",I!I211,入力シート!I38)","v":0}]
[null,null,null,null,null,null,null,null,null,null,null,null,{"$f":"IF(AJ18=0,\"\",AJ18)","v":""},null,null,null,null,null,null,null,null,null,null,null,null,null,null,null,null,null,null,null,null,null,null,{"$f":"IF(入力シート!I39=\"\",I!I212,入力シート!I39)","v":0}]
[]
[null,null,"申請者４",null,null,null,null,null,null,null,"住所",null,{"$f":"IF(AJ20=0,\"\",AJ20)","v":""},null,null,null,null,null,null,null,null,null,null,null,null,null,null,null,null,null,null,null,null,null,null,{"$f":"IF(入力シート!I45=\"\",I!I222,入力シート!I45)","v":0}]
[]
[null,null,null,null,null,null,null,null,null,null,"氏名",null,{"$f":"IF(AJ22=0,\"\",AJ22)","v":""},null,null,null,null,null,null,null,null,null,null,null,null,null,null,null,null,null,null,null,null,null,null,{"$f":"IF(入力シート!I43=\"\",I!I219,入力シート!I43)","v":0}]
[null,null,null,null,null,null,null,null,null,null,null,null,{"$f":"IF(AJ23=0,\"\",AJ23)","v":""},null,null,null,null,null,null,null,null,null,null,null,null,null,null,null,null,null,null,null,null,null,null,{"$f":"IF(入力シート!I44=\"\",I!I220,入力シート!I44)","v":0}]

{"sheet":"I","index":4,"n_rows":241,"n_cols":33,"rows_kept":241,"cut":false,"hidden":true,"merged":[]}
[]
[]
[]
[]
[]
[]
[]
[]
[]
[]
[]
[]
[]
[]
[]
[]
[]
[]
[]
[]
[]
[]
[]
[]
[]
[]
[]
[]
[]
[]
[]
[]
[]
[]
[]
[]
[]
[]
[]
[]
[]
[]
[]
[]
[]
[]
[]
[]
[]
[]
[]
[]
[]
[]
[]
[]
[]
[]
[]
[]
[]
[]
[]
[]
[]
[]
[]
[]
[]
[]
[]
[]
[]
[]
[]
[]
[]
[]
[]
[]
[]
[]
[]
[]
[]
[]
[]
[]
[]
[]
[]
[]
[]
[]
[]
[]
[]
[]
[]
[]
[]
[]
[]
[]
[]
[]
[]
[]
[]
[]
[]
[]
[]
[]
[]
[]
[]
[]
[]
[]
[]
[]
[]
[]
[]
[]
[]
[]
[]
[]
[]
[]
[]
[]
[]
[]
[]
[]
[]
[]
[]
[]
[]
[]
[]
[]
[]
[]
[]
[]
[]
[]
[]
[]
[]
[]
[]
[]
[]
[]
[]
[]
[]
[]
[]
[]
[]
[]
[]
[]
[]
[]
[]
[]
[]
[]
[]
[]
[]
[]
[]
[]
[]
[]
[]
[]
[]
[]
[]
[]
[]
[]
[]
[]
[]
[]
[]
[]
[]
[]
[]
[]
[]
[]
[]
[]
[]
[]
[]
[]
[]
[]
[]
[]
[]
[]
[]
[]
[]
[]
[]
[]
[]
[]
[]
[]
[]
[]
[]
[]
[]
[]
[]
[]
[]
[]
[null,null,null,null,null,null,null,null,null,null,null,null,null,null,null,null,null,null,null,null,null,null,null,null,null,null,null,null,null,false,false,false,false]
[null,null,null,null,null,null,null,null,null,null,null,null,null,null,null,null,null,null,null,null,null,null,null,null,null,null,null,null,null,false,false]
[]
[]
[null,null,null,null,null,null,null,null,null,null,null,null,null,null,null,null,null,null,null,null,null,null,null,null,null,null,null,null,null,false,false,false]

{"sheet":"DATA","index":5,"n_rows":347,"n_cols":48,"rows_kept":347,"cut":false,"hidden":true,"merged":[[0,6,1,6],[0,0,2,0],[0,1,2,1],[0,2,2,2],[0,3,2,3],[0,5,2,5],[0,4,2,4],[0,7,1,7],[0,8,1,8],[0,12,0,13],[0,14,0,30],[1,14,1,18],[1,47,2,47],[1,31,1,35],[0,9,1,9],[1,40,1,43],[0,10,1,11],[1,19,1,23],[0,31,0,46],[1,30,2,30]]}
["№","県\nコード","都道府県名","市町村\nコード","群\n(新旧含む)","市町村名","地域の区分","年間\n日射量地域区分","暖房期\n日射量地域区分","基準風速","積雪",null,"所管行政庁\n（未記入は県）",null,"長期優良住宅",null,null,null,null,null,null,null,null,null,null,null,null,null,null,null,null,"低炭素建築物",null,null,null,null,null,null,null,null,null,null,null,null,null,null,null,"地域別追加料金"]
[null,null,null,null,null,null,null,null,null,null,null,null,"１～３号","４号","審査項目",null,null,null,null,"居住環境配慮基準",null,null,null,null,"都計法\n第４条第４項","都計法\n第４条第６項","都計法\n第４条第７項","都計法\n第４条第８項","住宅地区改良法\n第２条第３項",null,"技術的審査料金\n区分","審査項目",null,null,null,null,"区域制限","都計法\n第12条","都計法\n第34条","都計法\n第45条","都市の緑地保全への配慮",null,null,null,null,null,null,"数字:都市計画区域の判断あり"]
[null,null,null,null,null,null,"[地域]","[区分]","[区分]","[m/s]","[cm]","多雪地域","特定\n行政庁","限定特定\n行政庁","長期使用構造等","住宅規模","居住環境配慮基準","維持保全計画","資金計画","地区計画等","景観計画","建築協定","景観協定","景観法\nに基づ\nかない\n景観に\n関する 条 例 ","促進区域","都市計画施設の区域","市街地再開発事業の区域","市街地開発事業等予定区域","改良地区",null,null,"外皮性能","一次エネルギー消費量","その他の措置","基本的な方針","資金計画","用途地域","特別緑地保全地区制度","緑化地域制度","緑化協定制度","生産緑地地区","建築協定","緑地保全に関する市町村条例","都市施設緑地"]
[1,21,"岐阜県",21,null,"岐阜県",null,null,null,null,null,null,"岐阜県","岐阜県","■","■","■","■","■",null,null,null,null,null,null,null,null,null,null,null,"イ","■","■","■","■","■"]
[2,21,"岐阜県",201,null,"岐阜市（旧岐阜市)",6,"A4","H4",34,40,null,"岐阜市","岐阜市","■","■","■","■","■","○","○",null,null,null,null,null,null,null,null,null,"イ","■","■","■","■","■"]
[19,21,"岐阜県",201,"羽島郡","岐阜市（旧柳津町)",6,"A4","H4",34,30,null,"岐阜市","岐阜市","■","■","■","■","■","○","○",null,null,null,null,null,null,null,null,null,"イ","■","■","■","■","■"]
[3,21,"岐阜県",202,null,"大垣市（旧大垣市)",6,"A4","H4",34,45,null,"大垣市","大垣市","■","■","■","■","■","○","○",null,null,null,null,null,null,null,null,null,"イ","■","■","■","■","■",null,null,null,null,null,null,null,null,null,null,null,1]
[24,21,"岐阜県",202,"養老郡","大垣市（旧上石津町)",5,"A4","H1",34,100,null,"大垣市","大垣市","■","■","■","■","■","○","○",null,null,null,null,null,null,null,null,null,"イ","■","■","■","■","■",null,null,null,null,null,null,null,null,null,null,null,1]
[30,21,"岐阜県",202,"安八郡","大垣市（旧墨俣町)",6,"A4","H4",34,40,null,"大垣市","大垣市","■","■","■","■","■","○","○",null,null,null,null,null,null,null,null,null,"イ","■","■","■","■","■",null,null,null,null,null,null,null,null,null,null,null,1]
[4,21,"岐阜県",203,null,"高山市（旧高山市)",4,"A3","H4",null,120,"○",null,"高山市","■","■","■","■","■","○","○",null,null,null,null,null,null,null,null,null,"イ","■","■","■","■","■",null,null,null,null,null,null,null,null,null,null,null,"C"]
[87,21,"岐阜県",203,"大野郡","高山市（旧丹生川村)",4,"A3","H4",null,150,"○",null,"高山市","■","■","■","■","■","○","○",null,null,null,null,null,null,null,null,null,"イ","■","■","■","■","■",null,null,null,null,null,null,null,null,null,null,null,"C"]
[88,21,"岐阜県",203,"大野郡","高山市（旧清見村)",4,"A3","H4",null,190,"○",null,"高山市","■","■","■","■","■","○","○",null,null,null,null,null,null,null,null,null,"イ","■","■","■","■","■",null,null,null,null,null,null,null,null,null,null,null,"C"]
[89,21,"岐阜県",203,"大野郡","高山市（旧荘川村)",4,"A3","H4",null,260,"○",null,"高山市","■","■","■","■","■","○","○",null,null,null,null,null,null,null,null,null,"イ","■","■","■","■","■",null,null,null,null,null,null,null,null,null,null,null,"C"]
[91,21,"岐阜県",203,"大野郡","高山市（旧宮村)",4,"A3","H4",null,120,"○",null,"高山市","■","■","■","■","■","○","○",null,null,null,null,null,null,null,null,null,"イ","■","■","■","■","■",null,null,null,null,null,null,null,null,null,null,null,"C"]
[92,21,"岐阜県",203,"大野郡","高山市（旧久々野町)",4,"A3","H4",null,120,"○",null,"高山市","■","■","■","■","■","○","○",null,null,null,null,null,null,null,null,null,"イ","■","■","■","■","■",null,null,null,null,null,null,null,null,null,null,null,"C"]
[93,21,"岐阜県",203,"大野郡","高山市（旧朝日村)",4,"A3","H4",null,120,"○",null,"高山市","■","■","■","■","■","○","○",null,null,null,null,null,null,null,null,null,"イ","■","■","■","■","■",null,null,null,null,null,null,null,null,null,null,null,"C"]
[94,21,"岐阜県",203,"大野郡","高山市（旧高根村)",4,"A3","H4",null,170,"○",null,"高山市","■","■","■","■","■","○","○",null,null,null,null,null,null,null,null,null,"イ","■","■","■","■","■",null,null,null,null,null,null,null,null,null,null,null,"C"]
[96,21,"岐阜県",203,"吉城郡","高山市（旧国府町)",4,"A3","H4",null,140,"○",null,"高山市","■","■","■","■","■","○","○",null,null,null,null,null,null,null,null,null,"イ","■","■","■","■","■",null,null,null,null,null,null,null,null,null,null,null,"C"]
[100,21,"岐阜県",203,"吉城郡","高山市（旧上宝村)",4,"A3","H4",null,250,"○",null,"高山市","■","■","■","■","■","○","○",null,null,null,null,null,null,null,null,null,"イ","■","■","■","■","■",null,null,null,null,null,null,null,null,null,null,null,"C"]
[5,21,"岐阜県",204,null,"多治見市（旧多治見市)",6,"A4","H2",32,30,null,null,"多治見市","■","■","■","■","■","○","○","△",null,null,null,null,null,null,null,null,"イ","■","■","■","■","■"]
[70,21,"岐阜県",204,"土岐郡","多治見市（旧笠原町)",6,"A4","H2",null,30,null,null,"多治見市","■","■","■","■","■","○","○","△",null,null,null,null,null,null,null,null,"イ","■","■","■","■","■"]
[6,21,"岐阜県",205,null,"関市（旧関市)",6,"A4","H2",32,40,null,null,null,"■","■","■","■","■","○","○",null,null,null,null,null,null,null,null,null,"イ","■","■","■","■","■",null,null,null,null,null,null,null,null,null,null,null,2]
[49,21,"岐阜県",205,"武儀郡","関市（旧洞戸村)",6,"A3","H2",32,100,"○",null,null,"■","■","■","■","■","○","○",null,null,null,null,null,null,null,null,null,"イ","■","■","■","■","■",null,null,null,null,null,null,null,null,null,null,null,2]
[50,21,"岐阜県",205,"武儀郡","関市（旧板取村)",6,"A3","H2",null,170,"○",null,null,"■","■","■","■","■","○","○",null,null,null,null,null,null,null,null,null,"イ","■","■","■","■","■",null,null,null,null,null,null,null,null,null,null,null,2]
[51,21,"岐阜県",205,"武儀郡","関市（旧武芸川町)",6,"A3","H2",32,60,null,null,null,"■","■","■","■","■","○","○",null,null,null,null,null,null,null,null,null,"イ","■","■","■","■","■",null,null,null,null,null,null,null,null,null,null,null,2]
[52,21,"岐阜県",205,"武儀郡","関市（旧武儀町)",6,"A4","H2",null,40,null,null,null,"■","■","■","■","■","○","○",null,null,null,null,null,null,null,null,null,"イ","■","■","■","■","■",null,null,null,null,null,null,null,null,null,null,null,2]
[53,21,"岐阜県",205,"武儀郡","関市（旧上之保村)",6,"A3","H3",null,80,null,null,null,"■","■","■","■","■","○","○",null,null,null,null,null,null,null,null,null,"イ","■","■","■","■","■",null,null,null,null,null,null,null,null,null,null,null,2]
[7,21,"岐阜県",206,null,"中津川市（旧中津川市)",5,"A3","H3",null,30,null,null,null,"■","■","■","■","■","○","○",null,null,null,null,null,null,null,null,null,"イ","■","■","■","■","■",null,null,null,null,null,null,null,null,null,null,null,"B"]
[71,21,"岐阜県",206,"恵那郡","中津川市（旧坂下町)",4,"A3","H2",null,50,null,null,null,"■","■","■","■","■","○","○",null,null,null,null,null,null,null,null,null,"イ","■","■","■","■","■",null,null,null,null,null,null,null,null,null,null,null,"B"]
[72,21,"岐阜県",206,"恵那郡","中津川市（旧川上村)",4,"A3","H2",null,60,null,null,null,"■","■","■","■","■","○","○",null,null,null,null,null,null,null,null,null,"イ","■","■","■","■","■",null,null,null,null,null,null,null,null,null,null,null,"B"]
[73,21,"岐阜県",206,"恵那郡","中津川市（旧加子母村)",4,"A3","H3",null,70,null,null,null,"■","■","■","■","■","○","○",null,null,null,null,null,null,null,null,null,"イ","■","■","■","■","■",null,null,null,null,null,null,null,null,null,null,null,"B"]
[74,21,"岐阜県",206,"恵那郡","中津川市（旧付知町)",4,"A3","H2",null,60,null,null,null,"■","■","■","■","■","○","○",null,null,null,null,null,null,null,null,null,"イ","■","■","■","■","■",null,null,null,null,null,null,null,null,null,null,null,"B"]
[75,21,"岐阜県",206,"恵那郡","中津川市（旧福岡町)",4,"A3","H2",null,50,null,null,null,"■","■","■","■","■","○","○",null,null,null,null,null,null,null,null,null,"イ","■","■","■","■","■",null,null,null,null,null,null,null,null,null,null,null,"B"]
[76,21,"岐阜県",206,"恵那郡","中津川市（旧蛭川村)",4,"A4","H2",null,40,null,null,null,"■","■","■","■","■","○","○",null,null,null,null,null,null,null,null,null,"イ","■","■","■","■","■",null,null,null,null,null,null,null,null,null,null,null,"B"]
[101,21,"岐阜県",206,null,"中津川市（旧長野県山口村)",4,"A3","H3",null,70,null,null,null,"■","■","■","■","■","○","○",null,null,null,null,null,null,null,null,null,"イ","■","■","■","■","■",null,null,null,null,null,null,null,null,null,null,null,"B"]
[8,21,"岐阜県",207,null,"美濃市",5,"A3","H2",32,60,null,null,null,"■","■","■","■","■","○","○",null,null,null,null,null,null,null,null,null,"イ","■","■","■","■","■"]
[9,21,"岐阜県",208,null,"瑞浪市",5,"A4","H3",null,30,null,null,null,"■","■","■","■","■","○","○",null,null,null,null,null,null,null,null,null,"イ","■","■","■","■","■",null,null,null,null,null,null,null,null,null,null,null,"A"]
[10,21,"岐阜県",209,null,"羽島市",6,"A4","H4",34,30,null,null,null,"■","■","■","■","■","○","○",null,null,null,null,null,null,null,null,null,"イ","■","■","■","■","■"]
[11,21,"岐阜県",210,null,"恵那市（旧恵那市)",5,"A4","H3",null,30,null,null,null,"■","■","■","■","■","○","○",null,null,null,null,null,null,null,null,null,"イ","■","■","■","■","■",null,null,null,null,null,null,null,null,null,null,null,"B"]
[77,21,"岐阜県",210,"恵那郡","恵那市（旧岩村町)",5,"A3","H3",null,30,null,null,null,"■","■","■","■","■","○","○",null,null,null,null,null,null,null,null,null,"イ","■","■","■","■","■",null,null,null,null,null,null,null,null,null,null,null,"B"]
[78,21,"岐阜県",210,"恵那郡","恵那市（旧山岡町)",5,"A4","H3",null,30,null,null,null,"■","■","■","■","■","○","○",null,null,null,null,null,null,null,null,null,"イ","■","■","■","■","■",null,null,null,null,null,null,null,null,null,null,null,"B"]
[79,21,"岐阜県",210,"恵那郡","恵那市（旧明智町)",5,"A3","H3",null,30,null,null,null,"■","■","■","■","■","○","○",null,null,null,null,null,null,null,null,null,"イ","■","■","■","■","■",null,null,null,null,null,null,null,null,null,null,null,"B"]
[80,21,"岐阜県",210,"恵那郡","恵那市（旧串原村)",4,"A3","H2",null,30,null,null,null,"■","■","■","■","■","○","○",null,null,null,null,null,null,null,null,null,"イ","■","■","■","■","■",null,null,null,null,null,null,null,null,null,null,null,"B"]
[81,21,"岐阜県",210,"恵那郡","恵那市（旧上矢作町)",4,"A3","H2",null,30,null,null,null,"■","■","■","■","■","○","○",null,null,null,null,null,null,null,null,null,"イ","■","■","■","■","■",null,null,null,null,null,null,null,null,null,null,null,"B"]
[12,21,"岐阜県",211,null,"美濃加茂市",6,"A4","H2",32,30,null,null,null,"■","■","■","■","■","○","○",null,null,null,null,null,null,null,null,null,"イ","■","■","■","■","■"]
[13,21,"岐阜県",212,null,"土岐市",5,"A4","H3",null,30,null,null,null,"■","■","■","■","■","○","○",null,null,null,null,null,null,null,null,null,"イ","■","■","■","■","■"]
[14,21,"岐阜県",213,null,"各務原市（旧各務原市)",6,"A4","H4",32,30,null,"各務原市","各務原市","■","■","■","■","■","○","○",null,null,null,null,null,null,null,null,null,"イ","■","■","■","■","■"]
[16,21,"岐阜県",213,"羽島郡","各務原市（旧川島町)",6,"A4","H4",34,30,null,"各務原市","各務原市","■","■","■","■","■","○","○",null,null,null,null,null,null,null,null,null,"イ","■","■","■","■","■"]
[15,21,"岐阜県",214,null,"可児市（旧可児市)",6,"A4","H2",32,30,null,null,"可児市","■","■","■","■","■","○","○",null,null,null,null,null,null,null,null,null,"イ","■","■","■","■","■"]
[69,21,"岐阜県",214,"可児郡","可児市（旧兼山町)",6,"A4","H2",null,30,null,null,"可児市","■","■","■","■","■","○","○",null,null,null,null,null,null,null,null,null,"イ","■","■","■","■","■"]
[46,21,"岐阜県",215,"山県郡","山県市（旧高富町)",6,"A3","H1",32,40,null,null,null,"■","■","■","■","■","○","○",null,null,null,null,null,null,null,null,null,"イ","■","■","■","■","■",null,null,null,null,null,null,null,null,null,null,null,2]
[47,21,"岐阜県",215,"山県郡","山県市（旧伊自良村)",6,"A3","H1",32,80,null,null,null,"■","■","■","■","■","○","○",null,null,null,null,null,null,null,null,null,"イ","■","■","■","■","■",null,null,null,null,null,null,null,null,null,null,null,2]
[48,21,"岐阜県",215,"山県郡","山県市（旧美山町)",6,"A3","H2",32,100,"○",null,null,"■","■","■","■","■","○","○",null,null,null,null,null,null,null,null,null,"イ","■","■","■","■","■",null,null,null,null,null,null,null,null,null,null,null,2]
[41,21,"岐阜県",216,"本巣郡","瑞穂市（旧穂積町)",6,"A4","H4",34,40,null,null,null,"■","■","■","■","■","○","○",null,null,null,null,null,null,null,null,null,"イ","■","■","■","■","■"]
[42,21,"岐阜県",216,"本巣郡","瑞穂市（旧巣南町)",6,"A4","H4",34,50,null,null,null,"■","■","■","■","■","○","○",null,null,null,null,null,null,null,null,null,"イ","■","■","■","■","■"]
[95,21,"岐阜県",217,"吉城郡","飛騨市（旧古川町)",3,"A3","H3",null,200,"○",null,null,"■","■","■","■","■","○","○",null,null,null,null,null,null,null,null,null,"イ","■","■","■","■","■",null,null,null,null,null,null,null,null,null,null,null,"C"]
[97,21,"岐阜県",217,"吉城郡","飛騨市（旧河合村)",3,"A3","H3",null,270,"○",null,null,"■","■","■","■","■","○","○",null,null,null,null,null,null,null,null,null,"イ","■","■","■","■","■",null,null,null,null,null,null,null,null,null,null,null,"C"]
[98,21,"岐阜県",217,"吉城郡","飛騨市（旧宮川村)",4,"A2","H1",null,280,"○",null,null,"■","■","■","■","■","○","○",null,null,null,null,null,null,null,null,null,"イ","■","■","■","■","■",null,null,null,null,null,null,null,null,null,null,null,"C"]
[99,21,"岐阜県",217,"吉城郡","飛騨市（旧神岡町)",4,"A3","H2",null,200,"○",null,null,"■","■","■","■","■","○","○",null,null,null,null,null,null,null,null,null,"イ","■","■","■","■","■",null,null,null,null,null,null,null,null,null,null,null,"C"]
[40,21,"岐阜県",218,"本巣郡","本巣市（旧本巣町)",6,"A3","H5",34,80,null,null,null,"■","■","■","■","■","○","○",null,null,null,null,null,null,null,null,null,"イ","■","■","■","■","■",null,null,null,null,null,null,null,null,null,null,null,2]
[43,21,"岐阜県",218,"本巣郡","本巣市（旧真正町)",6,"A4","H4",34,50,null,null,null,"■","■","■","■","■","○","○",null,null,null,null,null,null,null,null,null,"イ","■","■","■","■","■",null,null,null,null,null,null,null,null,null,null,null,2]
[44,21,"岐阜県",218,"本巣郡","本巣市（旧糸貫町)",6,"A4","H4",34,50,null,null,null,"■","■","■","■","■","○","○",null,null,null,null,null,null,null,null,null,"イ","■","■","■","■","■",null,null,null,null,null,null,null,null,null,null,null,2]
[45,21,"岐阜県",218,"本巣郡","本巣市（旧根尾村)",4,"A2","H2",32,150,"○",null,null,"■","■","■","■","■","○","○",null,null,null,null,null,null,null,null,null,"イ","■","■","■","■","■",null,null,null,null,null,null,null,null,null,null,null,2]
[54,21,"岐阜県",219,"郡上郡","郡上市（旧八幡町)",4,"A3","H2",null,130,"○",null,null,"■","■","■","■","■","○","○",null,null,null,null,null,null,null,null,null,"イ","■","■","■","■","■",null,null,null,null,null,null,null,null,null,null,null,"B"]
[55,21,"岐阜県",219,"郡上郡","郡上市（旧大和町)",4,"A3","H2",null,160,"○",null,null,"■","■","■","■","■","○","○",null,null,null,null,null,null,null,null,null,"イ","■","■","■","■","■",null,null,null,null,null,null,null,null,null,null,null,"B"]
[56,21,"岐阜県",219,"郡上郡","郡上市（旧白鳥町)",4,"A3","H2",null,230,"○",null,null,"■","■","■","■","■","○","○",null,null,null,null,null,null,null,null,null,"イ","■","■","■","■","■",null,null,null,null,null,null,null,null,null,null,null,"B"]
[57,21,"岐阜県",219,"郡上郡","郡上市（旧高鷲村)",4,"A3","H2",null,260,"○",null,null,"■","■","■","■","■","○","○",null,null,null,null,null,null,null,null,null,"イ","■","■","■","■","■",null,null,null,null,null,null,null,null,null,null,null,"B"]
[58,21,"岐阜県",219,"郡上郡","郡上市（旧美並村)",5,"A3","H3",null,60,null,null,null,"■","■","■","■","■","○","○",null,null,null,null,null,null,null,null,null,"イ","■","■","■","■","■",null,null,null,null,null,null,null,null,null,null,null,"B"]
[59,21,"岐阜県",219,"郡上郡","郡上市（旧明宝村)",4,"A3","H2",null,170,"○",null,null,"■","■","■","■","■","○","○",null,null,null,null,null,null,null,null,null,"イ","■","■","■","■","■",null,null,null,null,null,null,null,null,null,null,null,"B"]
[60,21,"岐阜県",219,"郡上郡","郡上市（旧和良村)",4,"A3","H2",null,140,"○",null,null,"■","■","■","■","■","○","○",null,null,null,null,null,null,null,null,null,"イ","■","■","■","■","■",null,null,null,null,null,null,null,null,null,null,null,"B"]
[82,21,"岐阜県",220,"益田郡","下呂市（旧萩原町)",4,"A3","H2",null,90,null,null,null,"■","■","■","■","■","○","○",null,null,null,null,null,null,null,null,null,"イ","■","■","■","■","■",null,null,null,null,null,null,null,null,null,null,null,"C"]
[83,21,"岐阜県",220,"益田郡","下呂市（旧小坂町)",4,"A3","H3",null,80,null,null,null,"■","■","■","■","■","○","○",null,null,null,null,null,null,null,null,null,"イ","■","■","■","■","■",null,null,null,null,null,null,null,null,null,null,null,"C"]
[84,21,"岐阜県",220,"益田郡","下呂市（旧下呂町)",4,"A3","H2",null,60,null,null,null,"■","■","■","■","■","○","○",null,null,null,null,null,null,null,null,null,"イ","■","■","■","■","■",null,null,null,null,null,null,null,null,null,null,null,"C"]
[85,21,"岐阜県",220,"益田郡","下呂市（旧金山町)",4,"A3","H3",null,50,null,null,null,"■","■","■","■","■","○","○",null,null,null,null,null,null,null,null,null,"イ","■","■","■","■","■",null,null,null,null,null,null,null,null,null,null,null,"C"]
[86,21,"岐阜県",220,"益田郡","下呂市（旧馬瀬村)",4,"A3","H2",null,120,"○",null,null,"■","■","■","■","■","○","○",null,null,null,null,null,null,null,null,null,"イ","■","■","■","■","■",null,null,null,null,null,null,null,null,null,null,null,"C"]
[20,21,"岐阜県",221,"海津郡","海津市（旧海津町)",6,"A4","H4",34,30,null,null,null,"■","■","■","■","■","○","○",null,null,null,null,null,null,null,null,null,"イ","■","■","■","■","■"]
[21,21,"岐阜県",221,"海津郡","海津市（旧平田町)",6,"A4","H4",34,40,null,null,null,"■","■","■","■","■","○","○",null,null,null,null,null,null,null,null,null,"イ","■","■","■","■","■"]
[22,21,"岐阜県",221,"海津郡","海津市（旧南濃町)",6,"A4","H4",34,50,null,null,null,"■","■","■","■","■","○","○",null,null,null,null,null,null,null,null,null,"イ","■","■","■","■","■"]
[17,21,"岐阜県",302,"羽島郡","岐南町",6,"A4","H4",34,30,null,null,null,"■","■","■","■","■","○","○",null,null,null,null,null,null,null,null,null,"イ","■","■","■","■","■"]
[18,21,"岐阜県",303,"羽島郡","笠松町",6,"A4","H4",34,30,null,null,null,"■","■","■","■","■","○","○",null,null,null,null,null,null,null,null,null,"イ","■","■","■","■","■"]
[23,21,"岐阜県",341,"養老郡","養老町",6,"A4","H1",34,60,null,null,null,"■","■","■","■","■","○","○",null,null,null,null,null,null,null,null,null,"イ","■","■","■","■","■"]
[25,21,"岐阜県",361,"不破郡","垂井町",6,"A4","H4",34,90,null,null,null,"■","■","■","■","■","○","○",null,null,null,null,null,null,null,null,null,"イ","■","■","■","■","■"]
[26,21,"岐阜県",362,"不破郡","関ケ原町",5,"A3","H1",34,140,"○",null,null,"■","■","■","■","■","○","○",null,null,null,null,null,null,null,null,null,"イ","■","■","■","■","■",null,null,null,null,null,null,null,null,null,null,null,"A"]
[27,21,"岐阜県",381,"安八郡","神戸町",6,"A4","H4",34,50,null,null,null,"■","■","■","■","■","○","○",null,null,null,null,null,null,null,null,null,"イ","■","■","■","■","■"]
[28,21,"岐阜県",382,"安八郡","輪之内町",6,"A4","H4",34,40,null,null,null,"■","■","■","■","■","○","○",null,null,null,null,null,null,null,null,null,"イ","■","■","■","■","■"]
[29,21,"岐阜県",383,"安八郡","安八町",6,"A4","H1",34,40,null,null,null,"■","■","■","■","■","○","○",null,null,null,null,null,null,null,null,null,"イ","■","■","■","■","■"]
[31,21,"岐阜県",401,"揖斐郡","揖斐川町（旧揖斐川町)",6,"A3","H4",34,100,"○",null,null,"■","■","■","■","■","○","○",null,null,null,null,null,null,null,null,null,"イ","■","■","■","■","■",null,null,null,null,null,null,null,null,null,null,null,"B"]
[32,21,"岐阜県",401,"揖斐郡","揖斐川町（旧谷汲村)",6,"A3","H1",34,110,"○",null,null,"■","■","■","■","■","○","○",null,null,null,null,null,null,null,null,null,"イ","■","■","■","■","■",null,null,null,null,null,null,null,null,null,null,null,"B"]
[35,21,"岐阜県",401,"揖斐郡","揖斐川町（旧春日村)",6,"A3","H1",34,160,"○",null,null,"■","■","■","■","■","○","○",null,null,null,null,null,null,null,null,null,"イ","■","■","■","■","■",null,null,null,null,null,null,null,null,null,null,null,"B"]
[36,21,"岐阜県",401,"揖斐郡","揖斐川町（旧久瀬村)",6,"A3","H2",34,170,"○",null,null,"■","■","■","■","■","○","○",null,null,null,null,null,null,null,null,null,"イ","■","■","■","■","■",null,null,null,null,null,null,null,null,null,null,null,"B"]
[37,21,"岐阜県",401,"揖斐郡","揖斐川町（旧藤橋村)",6,"A2","H2",32,220,"○",null,null,"■","■","■","■","■","○","○",null,null,null,null,null,null,null,null,null,"イ","■","■","■","■","■",null,null,null,null,null,null,null,null,null,null,null,"B"]
[38,21,"岐阜県",401,"揖斐郡","揖斐川町（旧坂内村)",6,"A3","H2",32,300,"○",null,null,"■","■","■","■","■","○","○",null,null,null,null,null,null,null,null,null,"イ","■","■","■","■","■",null,null,null,null,null,null,null,null,null,null,null,"B"]
[33,21,"岐阜県",403,"揖斐郡","大野町",6,"A3","H4",34,70,null,null,null,"■","■","■","■","■","○","○",null,null,null,null,null,null,null,null,null,"イ","■","■","■","■","■"]
[34,21,"岐阜県",404,"揖斐郡","池田町",6,"A3","H4",34,80,null,null,null,"■","■","■","■","■","○","○",null,null,null,null,null,null,null,null,null,"イ","■","■","■","■","■"]
[39,21,"岐阜県",421,"本巣郡","北方町",6,"A4","H4",34,50,null,null,null,"■","■","■","■","■","○","○",null,null,null,null,null,null,null,null,null,"イ","■","■","■","■","■"]
[61,21,"岐阜県",501,"加茂郡","坂祝町",5,"A4","H2",32,30,null,null,null,"■","■","■","■","■","○","○",null,null,null,null,null,null,null,null,null,"イ","■","■","■","■","■"]
[62,21,"岐阜県",502,"加茂郡","富加町",5,"A4","H2",32,30,null,null,null,"■","■","■","■","■","○","○",null,null,null,null,null,null,null,null,null,"イ","■","■","■","■","■"]
[63,21,"岐阜県",503,"加茂郡","川辺町",5,"A4","H3",null,30,null,null,null,"■","■","■","■","■","○","○",null,null,null,null,null,null,null,null,null,"イ","■","■","■","■","■",null,null,null,null,null,null,null,null,null,null,null,"A"]
[64,21,"岐阜県",504,"加茂郡","七宗町",5,"A4","H3",null,40,null,null,null,"■","■","■","■","■","○","○",null,null,null,null,null,null,null,null,null,"イ","■","■","■","■","■",null,null,null,null,null,null,null,null,null,null,null,"B"]
[65,21,"岐阜県",505,"加茂郡","八百津町",5,"A4","H3",null,40,null,null,null,"■","■","■","■","■","○","○",null,null,null,null,null,null,null,null,null,"イ","■","■","■","■","■",null,null,null,null,null,null,null,null,null,null,null,"A"]
[66,21,"岐阜県",506,"加茂郡","白川町",5,"A3","H3",null,40,null,null,null,"■","■","■","■","■","○","○",null,null,null,null,null,null,null,null,null,"イ","■","■","■","■","■",null,null,null,null,null,null,null,null,null,null,null,"B"]
[67,21,"岐阜県",507,"加茂郡","東白川村",4,"A3","H2",null,50,null,null,null,"■","■","■","■","■","○","○",null,null,null,null,null,null,null,null,null,"イ","■","■","■","■","■",null,null,null,null,null,null,null,null,null,null,null,"B"]
[68,21,"岐阜県",521,"可児郡","御嵩町",5,"A4","H3",null,40,null,null,null,"■","■","■","■","■","○","○",null,null,null,null,null,null,null,null,null,"イ","■","■","■","■","■",null,null,null,null,null,null,null,null,null,null,null,"A"]
[90,21,"岐阜県",604,"大野郡","白川村",3,"A3","H3",null,380,"○",null,null,"■","■","■","■","■","○","○",null,null,null,null,null,null,null,null,null,"イ","■","■","■","■","■",null,null,null,null,null,null,null,null,null,null,null,"C"]
[102,22,"静岡県",22,null,"静岡県",null,null,null,null,null,null,"静岡県","静岡県","■","□","□","□","□",null,null,null,null,null,null,null,null,null,null,null,"ハ","■","■","■","□","□",null,null,null,null,null,null,null,null,null,null,null,"B"]
[103,22,"静岡県",100,null,"静岡市（旧静岡市 都市計画区域)",7,"A4","H5",32,30,null,"静岡市","静岡市","■","□","□","□","□","○","○",null,null,null,null,null,null,null,null,null,"ハ","■","■","■","□","□",null,null,null,null,null,null,null,null,null,null,null,"B"]
[104,22,"静岡県",100,null,"静岡市（旧静岡市 積雪40cm地域 都市計画区域外)",7,"A4","H5",32,40,null,"静岡市","静岡市","■","□","□","□","□","○","○",null,null,null,null,null,null,null,null,null,"ハ","■","■","■","□","□",null,null,null,null,null,null,null,null,null,null,null,"B"]
[105,22,"静岡県",100,null,"静岡市（旧静岡市 積雪55cm地域 都市計画区域外)",7,"A4","H5",32,55,null,"静岡市","静岡市","■","□","□","□","□","○","○",null,null,null,null,null,null,null,null,null,"ハ","■","■","■","□","□",null,null,null,null,null,null,null,null,null,null,null,"B"]
[108,22,"静岡県",100,null,"静岡市（旧清水市 都市計画区域)",7,"A3","H3",32,30,null,"静岡市","静岡市","■","□","□","□","□","○","○",null,null,null,null,null,null,null,null,null,"ハ","■","■","■","□","□",null,null,null,null,null,null,null,null,null,null,null,"B"]
[109,22,"静岡県",100,null,"静岡市（旧清水市 都市計画区域外)",7,"A3","H3",32,40,null,"静岡市","静岡市","■","□","□","□","□","○","○",null,null,null,null,null,null,null,null,null,"ハ","■","■","■","□","□",null,null,null,null,null,null,null,null,null,null,null,"B"]
[147,22,"静岡県",100,"庵原郡","静岡市（旧蒲原町 都市計画区域)",7,"A3","H3",32,30,null,"静岡市","静岡市","■","□","□","□","□","○","○",null,null,null,null,null,null,null,null,null,"ハ","■","■","■","□","□",null,null,null,null,null,null,null,null,null,null,null,"B"]
[148,22,"静岡県",100,"庵原郡","静岡市（旧蒲原町 都市計画区域外)",7,"A3","H3",32,40,null,"静岡市","静岡市","■","□","□","□","□","○","○",null,null,null,null,null,null,null,null,null,"ハ","■","■","■","□","□",null,null,null,null,null,null,null,null,null,null,null,"B"]
[149,22,"静岡県",100,"庵原郡","静岡市（旧由比町 都市計画区域)",7,"A3","H3",32,30,null,"静岡市","静岡市","■","□","□","□","□","○","○",null,null,null,null,null,null,null,null,null,"ハ","■","■","■","□","□",null,null,null,null,null,null,null,null,null,null,null,"B"]
[150,22,"静岡県",100,"庵原郡","静岡市（旧由比町 都市計画区域外)",7,"A3","H3",32,40,null,"静岡市","静岡市","■","□","□","□","□","○","○",null,null,null,null,null,null,null,null,null,"ハ","■","■","■","□","□",null,null,null,null,null,null,null,null,null,null,null,"B"]
[106,22,"静岡県",130,null,"浜松市（旧浜松市)",6,"A4","H3",32,30,null,"浜松市","浜松市","■","□","□","□","□","○","○",null,null,null,null,null,null,null,null,null,"ハ","■","■","■","□","□"]
[122,22,"静岡県",130,null,"浜松市（旧天竜市)",6,"A3","H4",null,30,null,"浜松市","浜松市","■","□","□","□","□","○","○",null,null,null,null,null,null,null,null,null,"ハ","■","■","■","□","□",null,null,null,null,null,null,null,null,null,null,null,"A"]
[123,22,"静岡県",130,null,"浜松市（旧浜北市)",6,"A4","H4",null,30,null,"浜松市","浜松市","■","□","□","□","□","○","○",null,null,null,null,null,null,null,null,null,"ハ","■","■","■","□","□"]
[167,22,"静岡県",130,"周智郡","浜松市（旧春野町)",6,"A3","H5",null,35,null,"浜松市","浜松市","■","□","□","□","□","○","○",null,null,null,null,null,null,null,null,null,"ハ","■","■","■","□","□"]
[173,22,"静岡県",130,"磐田郡","浜松市（旧龍山村)",6,"A3","H4",null,35,null,"浜松市","浜松市","■","□","□","□","□","○","○",null,null,null,null,null,null,null,null,null,"ハ","■","■","■","□","□"]
[174,22,"静岡県",130,"磐田郡","浜松市（旧佐久間町)",6,"A3","H5",null,35,null,"浜松市","浜松市","■","□","□","□","□","○","○",null,null,null,null,null,null,null,null,null,"ハ","■","■","■","□","□"]
[175,22,"静岡県",130,"磐田郡","浜松市（旧水窪町)",6,"A4","H3",null,45,null,"浜松市","浜松市","■","□","□","□","□","○","○",null,null,null,null,null,null,null,null,null,"ハ","■","■","■","□","□"]
[176,22,"静岡県",130,"浜名郡","浜松市（旧舞阪町)",6,"A5","H4",32,30,null,"浜松市","浜松市","■","□","□","□","□","○","○",null,null,null,null,null,null,null,null,null,"ハ","■","■","■","□","□"]
[178,22,"静岡県",130,"浜名郡","浜松市（旧雄踏町)",6,"A5","H4",32,30,null,"浜松市","浜松市","■","□","□","□","□","○","○",null,null,null,null,null,null,null,null,null,"ハ","■","■","■","□","□"]
[179,22,"静岡県",130,"引佐郡","浜松市（旧細江町)",6,"A4","H4",32,30,null,"浜松市","浜松市","■","□","□","□","□","○","○",null,null,null,null,null,null,null,null,null,"ハ","■","■","■","□","□"]
[180,22,"静岡県",130,"引佐郡","浜松市（旧引佐町)",6,"A4","H4",null,30,null,"浜松市","浜松市","■","□","□","□","□","○","○",null,null,null,null,null,null,null,null,null,"ハ","■","■","■","□","□"]
[181,22,"静岡県",130,"引佐郡","浜松市（旧三ケ日町)",6,"A4","H4",32,30,null,"浜松市","浜松市","■","□","□","□","□","○","○",null,null,null,null,null,null,null,null,null,"ハ","■","■","■","□","□"]
[107,22,"静岡県",203,null,"沼津市（旧沼津市)",7,"A4","H1",34,30,null,"沼津市","沼津市","■","□","□","□","□","○","○",null,null,null,null,null,null,null,null,null,"ハ","■","■","■","□","□",null,null,null,null,null,null,null,null,null,null,null,"C"]
[135,22,"静岡県",203,"田方郡","沼津市（旧戸田村)",7,"A4","H2",34,30,null,"沼津市","沼津市","■","□","□","□","□","○","○",null,null,null,null,null,null,null,null,null,"ハ","■","■","■","□","□",null,null,null,null,null,null,null,null,null,null,null,"C"]
[110,22,"静岡県",205,null,"熱海市",6,"A4","H5",34,30,null,null,null,"■","□","□","□","□","○","○",null,null,null,null,null,null,null,null,null,"ハ","■","■","■","□","□",null,null,null,null,null,null,null,null,null,null,null,"D"]
[111,22,"静岡県",206,null,"三島市",6,"A4","H4",34,30,null,null,"三島市","■","□","□","□","□","○","○",null,null,null,null,null,null,null,null,null,"ハ","■","■","■","□","□",null,null,null,null,null,null,null,null,null,null,null,"C"]
[112,22,"静岡県",207,null,"富士宮市（旧富士宮市)",6,"A3","H5",32,35,null,"富士宮市","富士宮市","■","□","□","□","□","○","○",null,null,null,null,null,null,null,null,null,"ハ","■","■","■","□","□",null,null,null,null,null,null,null,null,null,null,null,"C"]
[145,22,"静岡県",207,"富士郡","富士宮市（旧芝川町)",6,"A3","H5",32,35,null,"富士宮市","富士宮市","■","□","□","□","□","○","○",null,null,null,null,null,null,null,null,null,"ハ","■","■","■","□","□",null,null,null,null,null,null,null,null,null,null,null,"C"]
[113,22,"静岡県",208,null,"伊東市",7,"A4","H2",36,25,null,null,"伊東市","■","□","□","□","□","○",null,null,null,null,null,null,null,null,null,null,"ハ","■","■","■","□","□",null,null,null,null,null,null,null,null,null,null,null,"D"]
[114,22,"静岡県",209,null,"島田市（旧島田市)",6,"A4","H4",32,30,null,null,"島田市","■","□","□","□","□","○",null,null,null,null,null,null,null,null,null,null,"ハ","■","■","■","□","□",null,null,null,null,null,null,null,null,null,null,null,"B"]
[157,22,"静岡県",209,"榛原郡","島田市（旧金谷町)",6,"A4","H4",32,30,null,null,"島田市","■","□","□","□","□","○",null,null,null,null,null,null,null,null,null,null,"ハ","■","■","■","□","□",null,null,null,null,null,null,null,null,null,null,null,"B"]
[158,22,"静岡県",209,"榛原郡","島田市（旧川根町)",6,"A4","H5",null,40,null,null,"島田市","■","□","□","□","□","○",null,null,null,null,null,null,null,null,null,null,"ハ","■","■","■","□","□",null,null,null,null,null,null,null,null,null,null,null,"B"]
[115,22,"静岡県",210,null,"富士市（旧富士市)",7,"A3","H5",34,30,null,"富士市","富士市","■","□","□","□","□","○","○",null,null,null,null,null,null,null,null,null,"ハ","■","■","■","□","□",null,null,null,null,null,null,null,null,null,null,null,"C"]
[146,22,"静岡県",210,"庵原郡","富士市（旧富士川町)",7,"A3","H4",32,30,null,"富士市","富士市","■","□","□","□","□","○","○",null,null,null,null,null,null,null,null,null,"ハ","■","■","■","□","□",null,null,null,null,null,null,null,null,null,null,null,"C"]
[116,22,"静岡県",211,null,"磐田市（旧磐田市)",7,"A4","H4",32,30,null,null,"磐田市","■","□","□","□","□","○","○",null,null,null,null,null,null,null,null,null,"ハ","■","■","■","□","□",null,null,null,null,null,null,null,null,null,null,null,"A"]
[169,22,"静岡県",211,"磐田郡","磐田市（旧福田町)",7,"A4","H1",32,30,null,null,"磐田市","■","□","□","□","□","○","○",null,null,null,null,null,null,null,null,null,"ハ","■","■","■","□","□",null,null,null,null,null,null,null,null,null,null,null,"A"]
[170,22,"静岡県",211,"磐田郡","磐田市（旧竜洋町)",7,"A5","H3",32,30,null,null,"磐田市","■","□","□","□","□","○","○",null,null,null,null,null,null,null,null,null,"ハ","■","■","■","□","□",null,null,null,null,null,null,null,null,null,null,null,"A"]
[171,22,"静岡県",211,"磐田郡","磐田市（旧豊田町)",7,"A4","H4",32,30,null,null,"磐田市","■","□","□","□","□","○","○",null,null,null,null,null,null,null,null,null,"ハ","■","■","■","□","□",null,null,null,null,null,null,null,null,null,null,null,"A"]
[172,22,"静岡県",211,"磐田郡","磐田市（旧豊岡村)",7,"A4","H4",null,30,null,null,"磐田市","■","□","□","□","□","○","○",null,null,null,null,null,null,null,null,null,"ハ","■","■","■","□","□",null,null,null,null,null,null,null,null,null,null,null,"A"]
[117,22,"静岡県",212,null,"焼津市（旧焼津市)",7,"A4","H3",32,30,null,"焼津市","焼津市","■","□","□","□","□","○","○",null,null,null,null,null,null,null,null,null,"ハ","■","■","■","□","□",null,null,null,null,null,null,null,null,null,null,null,"B"]
[152,22,"静岡県",212,"志太郡","焼津市（旧大井川町)",7,"A4","H4",32,30,null,"焼津市","焼津市","■","□","□","□","□","○","○",null,null,null,null,null,null,null,null,null,"ハ","■","■","■","□","□",null,null,null,null,null,null,null,null,null,null,null,"B"]
[118,22,"静岡県",213,null,"掛川市（旧掛川市)",6,"A4","H4",32,30,null,null,"掛川市","■","□","□","□","□","○","○",null,null,null,null,null,null,null,null,null,"ハ","■","■","■","□","□",null,null,null,null,null,null,null,null,null,null,null,"B"]
[161,22,"静岡県",213,"小笠郡","掛川市（旧大須賀町)",6,"A4","H2",32,30,null,null,"掛川市","■","□","□","□","□","○","○",null,null,null,null,null,null,null,null,null,"ハ","■","■","■","□","□",null,null,null,null,null,null,null,null,null,null,null,"B"]
[165,22,"静岡県",213,"小笠郡","掛川市（旧大東町)",6,"A4","H2",32,30,null,null,"掛川市","■","□","□","□","□","○","○",null,null,null,null,null,null,null,null,null,"ハ","■","■","■","□","□",null,null,null,null,null,null,null,null,null,null,null,"B"]
[119,22,"静岡県",214,null,"藤枝市（旧藤枝市)",7,"A4","H4",32,30,null,null,"藤枝市","■","□","□","□","□","○","○",null,null,null,null,null,null,null,null,null,"ハ","■","■","■","□","□",null,null,null,null,null,null,null,null,null,null,null,"B"]
[151,22,"静岡県",214,"志太郡","藤枝市（旧岡部町)",7,"A4","H4",32,30,null,null,"藤枝市","■","□","□","□","□","○","○",null,null,null,null,null,null,null,null,null,"ハ","■","■","■","□","□",null,null,null,null,null,null,null,null,null,null,null,"B"]
[120,22,"静岡県",215,null,"御殿場市",5,"A3","H3",34,55,null,null,"御殿場市","■","□","□","□","□","○","○",null,null,null,null,null,null,null,null,null,"ハ","■","■","■","□","□",null,null,null,null,null,null,null,null,null,null,null,"D"]
[121,22,"静岡県",216,null,"袋井市（旧袋井市)",6,"A4","H4",32,30,null,null,"袋井市","■","□","□","□","□","○","○",null,null,null,null,null,null,null,null,null,"ハ","■","■","■","□","□",null,null,null,null,null,null,null,null,null,null,null,"A"]
[168,22,"静岡県",216,"磐田郡","袋井市（旧浅羽町)",6,"A4","H4",32,30,null,null,"袋井市","■","□","□","□","□","○","○",null,null,null,null,null,null,null,null,null,"ハ","■","■","■","□","□",null,null,null,null,null,null,null,null,null,null,null,"A"]
[124,22,"静岡県",219,null,"下田市",7,"A4","H5",36,25,null,null,null,"■","□","□","□","□","○","○",null,null,null,null,null,null,null,null,null,"ハ","■","■","■","□","□",null,null,null,null,null,null,null,null,null,null,null,"D"]
[125,22,"静岡県",220,null,"裾野市",6,"A3","H5",34,35,null,null,"裾野市","■","□","□","□","□","○",null,null,null,null,null,null,null,null,null,null,"ハ","■","■","■","□","□",null,null,null,null,null,null,null,null,null,null,null,"C"]
[126,22,"静岡県",221,null,"湖西市（旧湖西市)",6,"A5","H4",32,30,null,null,"湖西市","■","□","□","□","□","○","○",null,null,null,null,null,null,null,null,null,"ハ","■","■","■","□","□"]
[177,22,"静岡県",221,"浜名郡","湖西市（旧新居町)",6,"A5","H2",32,30,null,null,"湖西市","■","□","□","□","□","○","○",null,null,null,null,null,null,null,null,null,"ハ","■","■","■","□","□"]
[134,22,"静岡県",222,"田方郡","伊豆市（旧修善寺町)",6,"A4","H2",34,30,null,null,null,"■","□","□","□","□","○","○",null,null,null,null,null,null,null,null,null,"ハ","■","■","■","□","□",null,null,null,null,null,null,null,null,null,null,null,"D"]
[136,22,"静岡県",222,"田方郡","伊豆市（旧土肥町)",6,"A4","H2",34,30,null,null,null,"■","□","□","□","□","○","○",null,null,null,null,null,null,null,null,null,"ハ","■","■","■","□","□",null,null,null,null,null,null,null,null,null,null,null,"D"]
[140,22,"静岡県",222,"田方郡","伊豆市（旧天城湯ケ島町)",6,"A4","H2",34,35,null,null,null,"■","□","□","□","□","○","○",null,null,null,null,null,null,null,null,null,"ハ","■","■","■","□","□",null,null,null,null,null,null,null,null,null,null,null,"D"]
[141,22,"静岡県",222,"田方郡","伊豆市（旧中伊豆町)",6,"A4","H2",34,35,null,null,null,"■","□","□","□","□","○","○",null,null,null,null,null,null,null,null,null,"ハ","■","■","■","□","□",null,null,null,null,null,null,null,null,null,null,null,"D"]
[153,22,"静岡県",223,"榛原郡","御前崎市（旧御前崎町)",7,"A5","H1",32,30,null,null,null,"■","□","□","□","□","○","○",null,null,null,null,null,null,null,null,null,"ハ","■","■","■","□","□",null,null,null,null,null,null,null,null,null,null,null,"B"]
[162,22,"静岡県",223,"小笠郡","御前崎市（旧浜岡町)",7,"A4","H5",32,25,null,null,null,"■","□","□","□","□","○","○",null,null,null,null,null,null,null,null,null,"ハ","■","■","■","□","□",null,null,null,null,null,null,null,null,null,null,null,"B"]
[163,22,"静岡県",224,"小笠郡","菊川市（旧小笠町)",6,"A4","H4",32,30,null,null,null,"■","□","□","□","□","○","○",null,null,null,null,null,null,null,null,null,"ハ","■","■","■","□","□",null,null,null,null,null,null,null,null,null,null,null,"B"]
[164,22,"静岡県",224,"小笠郡","菊川市（旧菊川町)",6,"A4","H4",32,30,null,null,null,"■","□","□","□","□","○","○",null,null,null,null,null,null,null,null,null,"ハ","■","■","■","□","□",null,null,null,null,null,null,null,null,null,null,null,"B"]
[133,22,"静岡県",225,"田方郡","伊豆の国市（旧伊豆長岡町)",6,"A4","H2",34,30,null,null,null,"■","□","□","□","□","○","○",null,null,null,null,null,null,null,null,null,"ハ","■","■","■","□","□",null,null,null,null,null,null,null,null,null,null,null,"D"]
[138,22,"静岡県",225,"田方郡","伊豆の国市（旧韮山町)",6,"A4","H3",34,30,null,null,null,"■","□","□","□","□","○","○",null,null,null,null,null,null,null,null,null,"ハ","■","■","■","□","□",null,null,null,null,null,null,null,null,null,null,null,"D"]
[139,22,"静岡県",225,"田方郡","伊豆の国市（旧大仁町)",6,"A4","H2",34,30,null,null,null,"■","□","□","□","□","○","○",null,null,null,null,null,null,null,null,null,"ハ","■","■","■","□","□",null,null,null,null,null,null,null,null,null,null,null,"D"]
[154,22,"静岡県",226,"榛原郡","牧之原市（旧相良町)",7,"A4","H4",32,25,null,null,null,"■","□","□","□","□","○","○",null,null,null,null,null,null,null,null,null,"ハ","■","■","■","□","□",null,null,null,null,null,null,null,null,null,null,null,"B"]
[155,22,"静岡県",226,"榛原郡","牧之原市（旧榛原町)",7,"A4","H4",32,30,null,null,null,"■","□","□","□","□","○","○",null,null,null,null,null,null,null,null,null,"ハ","■","■","■","□","□",null,null,null,null,null,null,null,null,null,null,null,"B"]
[128,22,"静岡県",302,"賀茂郡","河津町",7,"A4","H5",36,25,null,null,null,"■","□","□","□","□","○","○",null,null,null,null,null,null,null,null,null,"ハ","■","■","■","□","□",null,null,null,null,null,null,null,null,null,null,null,"D"]
[129,22,"静岡県",304,"賀茂郡","南伊豆町",7,"A4","H5",36,25,null,null,null,"■","□","□","□","□","○","○",null,null,null,null,null,null,null,null,null,"ハ","■","■","■","□","□",null,null,null,null,null,null,null,null,null,null,null,"D"]
[130,22,"静岡県",305,"賀茂郡","松崎町",7,"A4","H5",34,25,null,null,null,"■","□","□","□","□","○","○",null,null,null,null,null,null,null,null,null,"ハ","■","■","■","□","□",null,null,null,null,null,null,null,null,null,null,null,"D"]
[131,22,"静岡県",306,"賀茂郡","西伊豆町（旧西伊豆町)",6,"A4","H5",34,25,null,null,null,"■","□","□","□","□","○","○",null,null,null,null,null,null,null,null,null,"ハ","■","■","■","□","□",null,null,null,null,null,null,null,null,null,null,null,"D"]
[132,22,"静岡県",306,"賀茂郡","西伊豆町（旧賀茂村)",6,"A4","H2",34,25,null,null,null,"■","□","□","□","□","○","○",null,null,null,null,null,null,null,null,null,"ハ","■","■","■","□","□",null,null,null,null,null,null,null,null,null,null,null,"D"]
[127,22,"静岡県",310,"賀茂郡","東伊豆町",7,"A4","H3",36,25,null,null,null,"■","□","□","□","□","○","○",null,null,null,null,null,null,null,null,null,"ハ","■","■","■","□","□",null,null,null,null,null,null,null,null,null,null,null,"D"]
[137,22,"静岡県",325,"田方郡","函南町",6,"A4","H3",34,30,null,null,null,"■","□","□","□","□","○","○",null,null,null,null,null,null,null,null,null,"ハ","■","■","■","□","□",null,null,null,null,null,null,null,null,null,null,null,"D"]
[142,22,"静岡県",341,"駿東郡","清水町",7,"A4","H3",34,30,null,null,null,"■","□","□","□","□","○","○",null,null,null,null,null,null,null,null,null,"ハ","■","■","■","□","□",null,null,null,null,null,null,null,null,null,null,null,"C"]
[143,22,"静岡県",342,"駿東郡","長泉町",6,"A4","H5",34,30,null,null,null,"■","□","□","□","□","○","○",null,null,null,null,null,null,null,null,null,"ハ","■","■","■","□","□",null,null,null,null,null,null,null,null,null,null,null,"C"]
[144,22,"静岡県",344,"駿東郡","小山町",5,"A3","H4",34,45,null,null,null,"■","□","□","□","□","○","○",null,null,null,null,null,null,null,null,null,"ハ","■","■","■","□","□",null,null,null,null,null,null,null,null,null,null,null,"D"]
[156,22,"静岡県",424,"榛原郡","吉田町",7,"A4","H4",32,30,null,null,null,"■","□","□","□","□","○","○",null,null,null,null,null,null,null,null,null,"ハ","■","■","■","□","□",null,null,null,null,null,null,null,null,null,null,null,"B"]
[159,22,"静岡県",429,"榛原郡","川根本町（旧中川根町)",5,"A4","H2",null,40,null,null,null,"■","□","□","□","□","○","○",null,null,null,null,null,null,null,null,null,"ハ","■","■","■","□","□",null,null,null,null,null,null,null,null,null,null,null,"B"]
[160,22,"静岡県",429,"榛原郡","川根本町（旧本川根町)",5,"A4","H4",null,45,null,null,null,"■","□","□","□","□","○","○",null,null,null,null,null,null,null,null,null,"ハ","■","■","■","□","□",null,null,null,null,null,null,null,null,null,null,null,"B"]
[166,22,"静岡県",461,"周智郡","森町",6,"A3","H4",null,30,null,null,null,"■","□","□","□","□","○","○",null,null,null,null,null,null,null,null,null,"ハ","■","■","■","□","□",null,null,null,null,null,null,null,null,null,null,null,"B"]
[182,23,"愛知県",23,null,"愛知県",null,null,null,null,null,null,"愛知県","愛知県","■","■","□","■","■",null,null,null,null,null,null,null,null,null,null,null,"ロ","■","■","■","■","■"]
[183,23,"愛知県",100,null,"名古屋市",6,"A4","H4",34,30,null,"名古屋市","名古屋市","■","■","□","■","■","○","○","○",null,null,null,null,null,null,null,null,"ロ","■","■","■","■","■",null,null,"○","○","○","○","○","○","○"]
[184,23,"愛知県",201,null,"豊橋市",7,"A4","H4",32,30,null,"豊橋市","豊橋市","■","■","□","■","■","○",null,"○",null,null,null,null,null,null,null,null,"ロ","■","■","■","■","■",null,null,null,null,null,null,"○","○","○"]
[185,23,"愛知県",202,null,"岡崎市（旧岡崎市)",6,"A4","H5",34,30,null,"岡崎市","岡崎市","■","■","□","■","■","○",null,null,null,null,null,null,null,null,null,null,"ロ","■","■","■","■","■",null,null,null,null,"○","○","○","○","○"]
[249,23,"愛知県",202,"額田郡","岡崎市（旧額田町)",6,"A4","H5",32,40,null,"岡崎市","岡崎市","■","■","□","■","■","○",null,null,null,null,null,null,null,null,null,null,"ロ","■","■","■","■","■",null,null,null,null,"○","○","○","○","○"]
[186,23,"愛知県",203,null,"一宮市（旧一宮市)",6,"A4","H4",34,30,null,"一宮市","一宮市","■","■","□","■","■","○",null,null,"○",null,null,null,null,null,null,null,"ロ","■","■","■","■","■",null,null,null,null,null,"○","○",null,"○"]
[201,23,"愛知県",203,null,"一宮市（旧尾西市)",6,"A4","H4",34,30,null,"一宮市","一宮市","■","■","□","■","■","○",null,null,"○",null,null,null,null,null,null,null,"ロ","■","■","■","■","■",null,null,null,null,null,"○","○",null,"○"]
[225,23,"愛知県",203,"葉栗郡","一宮市（旧木曽川町)",6,"A4","H4",34,30,null,"一宮市","一宮市","■","■","□","■","■","○",null,null,"○",null,null,null,null,null,null,null,"ロ","■","■","■","■","■",null,null,null,null,null,"○","○",null,"○"]
[187,23,"愛知県",204,null,"瀬戸市",6,"A4","H5",32,35,null,null,"瀬戸市","■","■","□","■","■","○","○","○",null,null,null,null,null,null,null,null,"ロ","■","■","■","■","■",null,null,null,null,null,"○","○",null,"○"]
[188,23,"愛知県",205,null,"半田市",6,"A4","H4",34,30,null,null,"半田市","■","■","□","■","■","○","○","○",null,null,null,null,null,null,null,null,"ロ","■","■","■","■","■",null,null,null,null,null,"○","○","○","○"]
[189,23,"愛知県",206,null,"春日井市",6,"A4","H5",32,30,null,"春日井市","春日井市","■","■","□","■","■","○","○","○","○",null,null,null,null,null,null,null,"ロ","■","■","■","■","■",null,null,"○",null,"○","○","○",null,"○"]
[190,23,"愛知県",207,null,"豊川市（旧豊川市)",6,"A4","H5",32,30,null,null,"豊川市","■","■","□","■","■","○",null,"○",null,null,null,null,null,null,null,null,"ロ","■","■","■","■","■",null,null,null,null,null,null,"○",null,"○"]
[264,23,"愛知県",207,"宝飯郡","豊川市（旧音羽町)",6,"A4","H5",32,30,null,null,"豊川市","■","■","□","■","■","○",null,"○",null,null,null,null,null,null,null,null,"ロ","■","■","■","■","■",null,null,null,null,null,null,"○",null,"○"]
[265,23,"愛知県",207,"宝飯郡","豊川市（旧一宮町)",6,"A4","H5",32,30,null,null,"豊川市","■","■","□","■","■","○",null,"○",null,null,null,null,null,null,null,null,"ロ","■","■","■","■","■",null,null,null,null,null,null,"○",null,"○"]
[266,23,"愛知県",207,"宝飯郡","豊川市（旧小坂井町)",6,"A4","H4",32,30,null,null,"豊川市","■","■","□","■","■","○",null,"○",null,null,null,null,null,null,null,null,"ロ","■","■","■","■","■",null,null,null,null,null,null,"○",null,"○"]
[267,23,"愛知県",207,"宝飯郡","豊川市（旧御津町)",6,"A4","H4",32,30,null,null,"豊川市","■","■","□","■","■","○",null,"○",null,null,null,null,null,null,null,null,"ロ","■","■","■","■","■",null,null,null,null,null,null,"○",null,"○"]
[191,23,"愛知県",208,null,"津島市",6,"A4","H4",34,30,null,null,null,"■","■","□","■","■",null,null,null,null,null,null,null,null,null,null,null,"ロ","■","■","■","■","■",null,null,null,null,null,"○",null,"○","○"]
[192,23,"愛知県",209,null,"碧南市",6,"A4","H4",34,30,null,null,null,"■","■","□","■","■",null,null,null,null,null,null,null,null,null,null,null,"ロ","■","■","■","■","■",null,null,null,null,null,"○",null,null,"○"]
[193,23,"愛知県",210,null,"刈谷市",6,"A4","H4",34,30,null,null,"刈谷市","■","■","□","■","■","○","○",null,null,null,null,null,null,null,null,null,"ロ","■","■","■","■","■",null,null,null,null,null,"○",null,"○","○"]
[194,23,"愛知県",211,null,"豊田市（旧豊田市)",6,"A4","H2",32,30,null,"豊田市","豊田市","■","■","□","■","■","○","○","○",null,null,null,null,null,null,null,null,"ロ","■","■","■","■","■",null,null,null,"○",null,"○","○","○","○"]
[251,23,"愛知県",211,"西加茂郡","豊田市（旧藤岡町)",6,"A4","H2",null,35,null,"豊田市","豊田市","■","■","□","■","■","○","○","○",null,null,null,null,null,null,null,null,"ロ","■","■","■","■","■"]
[252,23,"愛知県",211,"西加茂郡","豊田市（旧小原村)",6,"A4","H3",null,45,null,"豊田市","豊田市","■","■","□","■","■","○","○","○",null,null,null,null,null,null,null,null,"ロ","■","■","■","■","■"]
[253,23,"愛知県",211,"東加茂郡","豊田市（旧足助町)",6,"A3","H3",null,35,null,"豊田市","豊田市","■","■","□","■","■","○","○","○",null,null,null,null,null,null,null,null,"ロ","■","■","■","■","■"]
[254,23,"愛知県",211,"東加茂郡","豊田市（旧下山村)",6,"A3","H2",null,50,null,"豊田市","豊田市","■","■","□","■","■","○","○","○",null,null,null,null,null,null,null,null,"ロ","■","■","■","■","■"]
[255,23,"愛知県",211,"東加茂郡","豊田市（旧旭町)",6,"A3","H3",null,40,null,"豊田市","豊田市","■","■","□","■","■","○","○","○",null,null,null,null,null,null,null,null,"ロ","■","■","■","■","■"]
[261,23,"愛知県",211,"北設楽郡","豊田市（旧稲武町)",4,"A3","H2",32,55,null,"豊田市","豊田市","■","■","□","■","■","○","○","○",null,null,null,null,null,null,null,null,"ロ","■","■","■","■","■"]
[195,23,"愛知県",212,null,"安城市",6,"A4","H4",34,30,null,null,"安城市","■","■","□","■","■","○",null,null,null,null,null,null,null,null,null,null,"ロ","■","■","■","■","■",null,null,null,null,null,"○",null,"○"]
[196,23,"愛知県",213,null,"西尾市（旧西尾市)",6,"A4","H4",34,30,null,null,"西尾市","■","■","□","■","■","○",null,null,null,null,null,null,null,null,null,null,"ロ","■","■","■","■","■",null,null,null,null,null,"○",null,"○","○"]
[245,23,"愛知県",213,"幡豆郡","西尾市（旧一色町)",6,"A4","H1",34,25,null,null,"西尾市","■","■","□","■","■","○",null,null,null,null,null,null,null,null,null,null,"ロ","■","■","■","■","■",null,null,null,null,null,"○",null,"○","○"]
[246,23,"愛知県",213,"幡豆郡","西尾市（旧吉良町)",6,"A4","H4",34,25,null,null,"西尾市","■","■","□","■","■","○",null,null,null,null,null,null,null,null,null,null,"ロ","■","■","■","■","■",null,null,null,null,null,"○",null,"○","○"]
[247,23,"愛知県",213,"幡豆郡","西尾市（旧幡豆町)",6,"A4","H4",34,30,null,null,"西尾市","■","■","□","■","■","○",null,null,null,null,null,null,null,null,null,null,"ロ","■","■","■","■","■",null,null,null,null,null,"○",null,"○","○"]
[197,23,"愛知県",214,null,"蒲郡市",6,"A4","H3",34,30,null,null,null,"■","■","□","■","■","○",null,null,null,null,null,null,null,null,null,null,"ロ","■","■","■","■","■",null,null,null,null,null,null,null,null,"○"]
[198,23,"愛知県",215,null,"犬山市",6,"A4","H5",32,30,null,null,null,"■","■","□","■","■","○","○","○",null,null,null,null,null,null,null,null,"ロ","■","■","■","■","■",null,null,null,null,null,"○","○",null,"○"]
[199,23,"愛知県",216,null,"常滑市",6,"A4","H4",34,30,null,null,null,"■","■","□","■","■","○","○","○",null,null,null,null,null,null,null,null,"ロ","■","■","■","■","■",null,null,null,null,null,"○","○"]
[200,23,"愛知県",217,null,"江南市",6,"A4","H4",34,30,null,null,"江南市","■","■","□","■","■","○",null,null,null,null,null,null,null,null,null,null,"ロ","■","■","■","■","■",null,null,null,null,null,"○",null,"○","○"]
[202,23,"愛知県",219,null,"小牧市",6,"A4","H4",32,30,null,null,"小牧市","■","■","□","■","■","○",null,"○",null,"○",null,null,null,null,null,null,"ロ","■","■","■","■","■",null,null,null,null,null,"○","○",null,"○"]
[203,23,"愛知県",220,null,"稲沢市（旧稲沢市)",6,"A4","H4",34,30,null,null,"稲沢市","■","■","□","■","■","○",null,"○",null,null,null,null,null,null,null,null,"ロ","■","■","■","■","■",null,null,null,null,null,"○","○","○","○"]
[226,23,"愛知県",220,"中島郡","稲沢市（旧祖父江町)",6,"A4","H4",34,30,null,null,"稲沢市","■","■","□","■","■","○",null,"○",null,null,null,null,null,null,null,null,"ロ","■","■","■","■","■",null,null,null,null,null,"○","○","○","○"]
[227,23,"愛知県",220,"中島郡","稲沢市（旧平和町)",6,"A4","H4",34,30,null,null,"稲沢市","■","■","□","■","■","○",null,"○",null,null,null,null,null,null,null,null,"ロ","■","■","■","■","■",null,null,null,null,null,"○","○","○","○"]
[204,23,"愛知県",221,null,"新城市（旧新城市)",6,"A4","H5",null,30,null,null,null,"■","■","□","■","■","○",null,null,null,null,null,null,null,null,null,null,"ロ","■","■","■","■","■"]
[262,23,"愛知県",221,"南設楽郡","新城市（旧鳳来町)",6,"A3","H5",null,35,null,null,null,"■","■","□","■","■","○",null,null,null,null,null,null,null,null,null,null,"ロ","■","■","■","■","■"]
[263,23,"愛知県",221,"南設楽郡","新城市（旧作手村)",6,"A3","H5",null,55,null,null,null,"■","■","□","■","■","○",null,null,null,null,null,null,null,null,null,null,"ロ","■","■","■","■","■"]
[205,23,"愛知県",222,null,"東海市",6,"A4","H4",34,30,null,null,"東海市","■","■","□","■","■","○",null,null,null,null,null,null,null,null,null,null,"ロ","■","■","■","■","■",null,null,null,null,null,"○",null,"○","○"]
[206,23,"愛知県",223,null,"大府市",6,"A4","H4",34,30,null,null,"大府市","■","■","□","■","■","○",null,null,null,null,null,null,null,null,null,null,"ロ","■","■","■","■","■",null,null,null,null,null,"○",null,"○"]
[207,23,"愛知県",224,null,"知多市",6,"A4","H4",34,30,null,null,null,"■","■","□","■","■","○",null,null,null,null,null,null,null,null,null,null,"ロ","■","■","■","■","■",null,null,null,null,null,"○",null,"○","○"]
[208,23,"愛知県",225,null,"知立市",6,"A4","H4",34,30,null,null,null,"■","■","□","■","■","○",null,null,null,null,null,null,null,null,null,null,"ロ","■","■","■","■","■",null,null,null,null,null,"○"]
[209,23,"愛知県",226,null,"尾張旭市",6,"A4","H5",32,35,null,null,null,"■","■","□","■","■","○",null,null,null,null,null,null,null,null,null,null,"ロ","■","■","■","■","■",null,null,null,null,null,"○",null,"○","○"]
[210,23,"愛知県",227,null,"高浜市",6,"A4","H4",34,30,null,null,null,"■","■","□","■","■","○",null,null,null,null,null,null,null,null,null,null,"ロ","■","■","■","■","■",null,null,null,null,null,"○",null,null,"○"]
[211,23,"愛知県",228,null,"岩倉市",6,"A4","H4",34,30,null,null,null,"■","■","□","■","■","○",null,null,null,null,null,null,null,null,null,null,"ロ","■","■","■","■","■",null,null,null,null,"○","○",null,"○"]
[212,23,"愛知県",229,null,"豊明市",6,"A4","H4",34,30,null,null,null,"■","■","□","■","■","○",null,null,null,null,null,null,null,null,null,null,"ロ","■","■","■","■","■",null,null,null,null,null,"○",null,null,"○"]
[213,23,"愛知県",230,null,"日進市",6,"A4","H5",32,35,null,null,null,"■","■","□","■","■","○",null,"○",null,null,null,null,null,null,null,null,"ロ","■","■","■","■","■",null,null,null,null,null,"○","○","○","○"]
[268,23,"愛知県",231,"渥美郡","田原市（旧田原町)",6,"A5","H3",34,30,null,null,null,"■","■","□","■","■","○",null,"○",null,null,null,null,null,null,null,null,"ロ","■","■","■","■","■",null,null,null,null,null,null,"○",null,"○"]
[269,23,"愛知県",231,"渥美郡","田原市（旧赤羽根町)",6,"A5","H1",34,30,null,null,null,"■","■","□","■","■","○",null,null,null,null,null,null,null,null,null,null,"ロ","■","■","■","■","■",null,null,null,null,null,null,"○",null,"○"]
[270,23,"愛知県",231,"渥美郡","田原市（旧渥美町)",6,"A5","H2",34,30,null,null,null,"■","■","□","■","■","○",null,null,null,null,null,null,null,null,null,null,"ロ","■","■","■","■","■",null,null,null,null,null,null,"○",null,"○"]
[236,23,"愛知県",232,"海部郡","愛西市（旧佐屋町)",6,"A4","H4",34,30,null,null,null,"■","■","□","■","■","○",null,null,null,null,null,null,null,null,null,null,"ロ","■","■","■","■","■",null,null,null,null,null,"○",null,null,"○"]
[237,23,"愛知県",232,"海部郡","愛西市（旧立田村)",6,"A4","H4",34,30,null,null,null,"■","■","□","■","■","○",null,null,null,null,null,null,null,null,null,null,"ロ","■","■","■","■","■",null,null,null,null,null,"○",null,null,"○"]
[238,23,"愛知県",232,"海部郡","愛西市（旧八開村)",6,"A4","H4",34,30,null,null,null,"■","■","□","■","■","○",null,null,null,null,null,null,null,null,null,null,"ロ","■","■","■","■","■",null,null,null,null,null,"○",null,null,"○"]
[239,23,"愛知県",232,"海部郡","愛西市（旧佐織町)",6,"A4","H4",34,30,null,null,null,"■","■","□","■","■","○",null,null,null,null,null,null,null,null,null,null,"ロ","■","■","■","■","■",null,null,null,null,null,"○",null,null,"○"]
[216,23,"愛知県",233,"西春日井郡","清須市（旧西枇杷島町)",6,"A4","H4",34,30,null,null,null,"■","■","□","■","■","○",null,null,null,null,null,null,null,null,null,null,"ロ","■","■","■","■","■",null,null,null,null,null,"○",null,null,"○"]
[220,23,"愛知県",233,"西春日井郡","清須市（旧春日町)",6,"A4","H4",34,30,null,null,null,"■","■","□","■","■","○",null,null,null,null,null,null,null,null,null,null,"ロ","■","■","■","■","■",null,null,null,null,null,"○",null,null,"○"]
[221,23,"愛知県",233,"西春日井郡","清須市（旧清洲町)",6,"A4","H4",34,30,null,null,null,"■","■","□","■","■","○",null,null,null,null,null,null,null,null,null,null,"ロ","■","■","■","■","■",null,null,null,null,null,"○",null,null,"○"]
[222,23,"愛知県",233,"西春日井郡","清須市（旧新川町)",6,"A4","H4",34,30,null,null,null,"■","■","□","■","■","○",null,null,null,null,null,null,null,null,null,null,"ロ","■","■","■","■","■",null,null,null,null,null,"○",null,null,"○"]
[218,23,"愛知県",234,"西春日井郡","北名古屋市（旧師勝町)",6,"A4","H4",34,30,null,null,null,"■","■","□","■","■","○",null,null,null,null,null,null,null,null,null,null,"ロ","■","■","■","■","■",null,null,null,null,null,"○",null,null,"○"]
[219,23,"愛知県",234,"西春日井郡","北名古屋市（旧西春町)",6,"A4","H4",34,30,null,null,null,"■","■","□","■","■","○",null,null,null,null,null,null,null,null,null,null,"ロ","■","■","■","■","■",null,null,null,null,null,"○",null,null,"○"]
[233,23,"愛知県",235,"海部郡","弥富市（旧十四山村)",6,"A4","H4",34,30,null,null,null,"■","■","□","■","■",null,null,null,null,null,null,null,null,null,null,null,"ロ","■","■","■","■","■",null,null,null,null,null,"○",null,null,"○"]
[235,23,"愛知県",235,"海部郡","弥富市（旧弥富町)",6,"A4","H2",34,30,null,null,null,"■","■","□","■","■",null,null,null,null,null,null,null,null,null,null,null,"ロ","■","■","■","■","■",null,null,null,null,null,"○",null,null,"○"]
[250,23,"愛知県",236,"西加茂郡","みよし市（旧三好町)",6,"A4","H5",32,30,null,null,null,"■","■","□","■","■","○","○","○",null,null,null,null,null,null,null,null,"ロ","■","■","■","■","■",null,null,null,null,null,"○","○","○","○"]
[228,23,"愛知県",237,"海部郡","あま市（旧七宝町)",6,"A4","H4",34,30,null,null,null,"■","■","□","■","■","○",null,null,null,null,null,null,null,null,null,null,"ロ","■","■","■","■","■",null,null,null,null,null,"○"]
[229,23,"愛知県",237,"海部郡","あま市（旧美和町)",6,"A4","H4",34,30,null,null,null,"■","■","□","■","■","○",null,null,null,null,null,null,null,null,null,null,"ロ","■","■","■","■","■",null,null,null,null,null,"○"]
[230,23,"愛知県",237,"海部郡","あま市（旧甚目寺町)",6,"A4","H4",34,30,null,null,null,"■","■","□","■","■","○",null,null,null,null,null,null,null,null,null,null,"ロ","■","■","■","■","■",null,null,null,null,null,"○"]
[215,23,"愛知県",238,"愛知郡","長久手市（旧長久手町)",6,"A4","H5",32,35,null,null,null,"■","■","□","■","■","○",null,null,null,"○",null,null,null,null,null,null,"ロ","■","■","■","■","■",null,null,null,null,null,"○",null,"○","○"]
[214,23,"愛知県",302,"愛知郡","東郷町",6,"A4","H5",32,30,null,null,null,"■","■","□","■","■","○",null,"○",null,null,null,null,null,null,null,null,"ロ","■","■","■","■","■",null,null,null,null,null,null,"○",null,"○"]
[217,23,"愛知県",342,"西春日井郡","豊山町",6,"A4","H4",34,30,null,null,null,"■","■","□","■","■","○",null,null,null,null,null,null,null,null,null,null,"ロ","■","■","■","■","■"]
[223,23,"愛知県",361,"丹羽郡","大口町",6,"A4","H4",32,30,null,null,null,"■","■","□","■","■",null,null,null,null,null,null,null,null,null,null,null,"ロ","■","■","■","■","■",null,null,null,null,null,"○",null,"○","○"]
[224,23,"愛知県",362,"丹羽郡","扶桑町",6,"A4","H4",32,30,null,null,null,"■","■","□","■","■",null,null,null,null,null,null,null,null,null,null,null,"ロ","■","■","■","■","■",null,null,null,null,null,null,null,"○","○"]
[231,23,"愛知県",424,"海部郡","大治町",6,"A4","H4",34,30,null,null,null,"■","■","□","■","■",null,null,null,null,null,null,null,null,null,null,null,"ロ","■","■","■","■","■",null,null,null,null,null,null,"○"]
[232,23,"愛知県",425,"海部郡","蟹江町",6,"A4","H4",34,30,null,null,null,"■","■","□","■","■",null,null,null,null,null,null,null,null,null,null,null,"ロ","■","■","■","■","■",null,null,null,null,null,null,null,null,"○"]
[234,23,"愛知県",427,"海部郡","飛島村",6,"A4","H4",34,30,null,null,null,"■","■","□","■","■","○",null,null,null,null,null,null,null,null,null,null,"ロ","■","■","■","■","■"]
[240,23,"愛知県",441,"知多郡","阿久比町",6,"A4","H4",34,30,null,null,null,"■","■","□","■","■","○",null,"○",null,null,null,null,null,null,null,null,"ロ","■","■","■","■","■",null,null,null,null,null,null,"○"]
[241,23,"愛知県",442,"知多郡","東浦町",6,"A4","H4",34,30,null,null,null,"■","■","□","■","■","○",null,null,null,null,null,null,null,null,null,null,"ロ","■","■","■","■","■",null,null,null,null,null,null,null,null,"○"]
[242,23,"愛知県",445,"知多郡","南知多町",6,"A4","H3",34,30,null,null,null,"■","■","□","■","■","○",null,null,null,null,null,null,null,null,null,null,"ロ","■","■","■","■","■"]
[243,23,"愛知県",446,"知多郡","美浜町",6,"A4","H3",34,25,null,null,null,"■","■","□","■","■","○",null,"○",null,null,null,null,null,null,null,null,"ロ","■","■","■","■","■",null,null,null,null,null,null,"○"]
[244,23,"愛知県",447,"知多郡","武豊町",6,"A4","H4",34,30,null,null,null,"■","■","□","■","■","○",null,"○",null,null,null,null,null,null,null,null,"ロ","■","■","■","■","■",null,null,null,null,null,null,"○",null,"○"]
[248,23,"愛知県",501,"額田郡","幸田町",6,"A4","H4",34,30,null,null,null,"■","■","□","■","■","○",null,null,null,null,null,null,null,null,null,null,"ロ","■","■","■","■","■"]
[256,23,"愛知県",561,"北設楽郡","設楽町（旧設楽町)",5,"A3","H3",null,55,null,null,null,"■","■","□","■","■",null,null,null,null,null,null,null,null,null,null,null,"ロ","■","■","■","■","■","×"]
[260,23,"愛知県",561,"北設楽郡","設楽町（旧津具村)",4,"A3","H3",null,65,null,null,null,"■","■","□","■","■",null,null,null,null,null,null,null,null,null,null,null,"ロ","■","■","■","■","■","×"]
[257,23,"愛知県",562,"北設楽郡","東栄町",5,"A3","H2",null,40,null,null,null,"■","■","□","■","■",null,null,null,null,null,null,null,null,null,null,null,"ロ","■","■","■","■","■","×"]
[258,23,"愛知県",563,"北設楽郡","豊根村（旧豊根村)",4,"A3","H3",null,55,null,null,null,"■","■","□","■","■",null,null,null,null,null,null,null,null,null,null,null,"ロ","■","■","■","■","■","×"]
[259,23,"愛知県",563,"北設楽郡","豊根村（旧富山村)",4,"A3","H3",null,45,null,null,null,"■","■","□","■","■",null,null,null,null,null,null,null,null,null,null,null,"ロ","■","■","■","■","■","×"]
[271,24,"三重県",24,null,"三重県",null,null,null,null,null,null,"三重県","三重県","■","■","■","■","■",null,null,null,null,null,null,null,null,null,null,null,"イ","■","■","■","■","■"]
[272,24,"三重県",201,null,"津市（旧津市)",6,"A4","H4",34,30,null,"津市","津市","■","■","□","■","■","○","○",null,null,null,null,null,null,null,null,null,"ロ","■","■","■","■","■",null,null,null,null,null,null,null,null,null,null,null,"B"]
[288,24,"三重県",201,null,"津市（旧久居市)",6,"A4","H4",34,30,null,"津市","津市","■","■","□","■","■","○","○",null,null,null,null,null,null,null,null,null,"ロ","■","■","■","■","■",null,null,null,null,null,null,null,null,null,null,null,"B"]
[302,24,"三重県",201,"安芸郡","津市（旧河芸町)",6,"A4","H4",34,30,null,"津市","津市","■","■","□","■","■","○","○",null,null,null,null,null,null,null,null,null,"ロ","■","■","■","■","■",null,null,null,null,null,null,null,null,null,null,null,"B"]
[303,24,"三重県",201,"安芸郡","津市（旧芸濃町)",6,"A4","H5",34,30,null,"津市","津市","■","■","□","■","■","○","○",null,null,null,null,null,null,null,null,null,"ロ","■","■","■","■","■",null,null,null,null,null,null,null,null,null,null,null,"B"]
[304,24,"三重県",201,"安芸郡","津市（旧美里村)",6,"A4","H5",34,30,null,"津市","津市","■","■","□","■","■","○","○",null,null,null,null,null,null,null,null,null,"ロ","■","■","■","■","■",null,null,null,null,null,null,null,null,null,null,null,"B"]
[305,24,"三重県",201,"安芸郡","津市（旧安濃町)",6,"A4","H4",34,30,null,"津市","津市","■","■","□","■","■","○","○",null,null,null,null,null,null,null,null,null,"ロ","■","■","■","■","■",null,null,null,null,null,null,null,null,null,null,null,"B"]
[306,24,"三重県",201,"一志郡","津市（旧香良洲町)",6,"A4","H4",34,30,null,"津市","津市","■","■","□","■","■","○","○",null,null,null,null,null,null,null,null,null,"ロ","■","■","■","■","■",null,null,null,null,null,null,null,null,null,null,null,"B"]
[307,24,"三重県",201,"一志郡","津市（旧一志町)",6,"A4","H4",34,30,null,"津市","津市","■","■","□","■","■","○","○",null,null,null,null,null,null,null,null,null,"ロ","■","■","■","■","■",null,null,null,null,null,null,null,null,null,null,null,"B"]
[308,24,"三重県",201,"一志郡","津市（旧白山町)",6,"A3","H5",34,30,null,"津市","津市","■","■","□","■","■","○","○",null,null,null,null,null,null,null,null,null,"ロ","■","■","■","■","■",null,null,null,null,null,null,null,null,null,null,null,"B"]
[310,24,"三重県",201,"一志郡","津市（旧美杉村)",5,"A3","H2",34,40,null,"津市","津市","■","■","□","■","■","○","○",null,null,null,null,null,null,null,null,null,"ロ","■","■","■","■","■",null,null,null,null,null,null,null,null,null,null,null,"B"]
[273,24,"三重県",202,null,"四日市市（旧四日市市 積雪30cm地域)",6,"A4","H4",34,30,null,"四日市市","四日市市","■","■","□","■","■","○","○","○",null,null,null,"○","○",null,null,null,"ロ","■","■","■","■","■"]
[274,24,"三重県",202,null,"四日市市（旧四日市市 積雪40cm地域)",6,"A4","H4",34,40,null,"四日市市","四日市市","■","■","□","■","■","○","○","○",null,null,null,null,null,null,null,null,"ロ","■","■","■","■","■"]
[275,24,"三重県",202,null,"四日市市（旧四日市市 積雪50cm地域)",6,"A4","H4",34,50,null,"四日市市","四日市市","■","■","□","■","■","○","○","○",null,null,null,null,null,null,null,null,"ロ","■","■","■","■","■"]
[298,24,"三重県",202,"三重郡","四日市市（旧楠町)",6,"A4","H4",34,30,null,"四日市市","四日市市","■","■","□","■","■","○","○","○",null,null,null,null,null,null,null,null,"ロ","■","■","■","■","■"]
[276,24,"三重県",203,null,"伊勢市（旧伊勢市)",6,"A4","H4",34,30,null,null,null,"■","■","■","■","■","○","○",null,null,null,null,null,null,null,null,null,"イ","■","■","■","■","■",null,null,null,null,null,null,null,null,null,null,null,"C"]
[320,24,"三重県",203,"度会郡","伊勢市（旧二見町)",6,"A4","H4",34,30,null,null,null,"■","■","■","■","■","○","○",null,null,null,null,null,null,null,null,null,"イ","■","■","■","■","■",null,null,null,null,null,null,null,null,null,null,null,"C"]
[321,24,"三重県",203,"度会郡","伊勢市（旧小俣町)",6,"A4","H4",34,30,null,null,null,"■","■","■","■","■","○","○",null,null,null,null,null,null,null,null,null,"イ","■","■","■","■","■",null,null,null,null,null,null,null,null,null,null,null,"C"]
[326,24,"三重県",203,"度会郡","伊勢市（旧御薗村)",6,"A4","H4",34,30,null,null,null,"■","■","■","■","■","○","○",null,null,null,null,null,null,null,null,null,"イ","■","■","■","■","■",null,null,null,null,null,null,null,null,null,null,null,"C"]
[277,24,"三重県",204,null,"松阪市（旧松阪市)",6,"A4","H4",34,30,null,"松阪市","松阪市","■","■","□","■","■","○","○",null,null,null,null,null,null,null,null,null,"ロ","■","■","■","■","■",null,null,null,null,null,null,null,null,null,null,null,"B"]
[309,24,"三重県",204,"一志郡","松阪市（旧嬉野町)",6,"A4","H4",34,30,null,"松阪市","松阪市","■","■","□","■","■","○","○",null,null,null,null,null,null,null,null,null,"ロ","■","■","■","■","■",null,null,null,null,null,null,null,null,null,null,null,"B"]
[311,24,"三重県",204,"一志郡","松阪市（旧三雲町)",6,"A4","H4",34,30,null,"松阪市","松阪市","■","■","□","■","■","○","○",null,null,null,null,null,null,null,null,null,"ロ","■","■","■","■","■",null,null,null,null,null,null,null,null,null,null,null,"B"]
[312,24,"三重県",204,"飯南郡","松阪市（旧飯南町)",5,"A3","H1",34,35,null,"松阪市","松阪市","■","■","□","■","■","○","○",null,null,null,null,null,null,null,null,null,"ロ","■","■","■","■","■",null,null,null,null,null,null,null,null,null,null,null,"B"]
[313,24,"三重県",204,"飯南郡","松阪市（旧飯高町)",5,"A3","H2",34,40,null,"松阪市","松阪市","■","■","□","■","■","○","○",null,null,null,null,null,null,null,null,null,"ロ","■","■","■","■","■",null,null,null,null,null,null,null,null,null,null,null,"B"]
[278,24,"三重県",205,null,"桑名市（旧桑名市)",6,"A4","H4",34,30,null,"桑名市","桑名市","■","■","■","■","■","○","○",null,null,null,null,null,null,null,null,null,"イ","■","■","■","■","■"]
[289,24,"三重県",205,"桑名郡","桑名市（旧多度町)",6,"A4","H4",34,40,null,"桑名市","桑名市","■","■","■","■","■","○","○",null,null,null,null,null,null,null,null,null,"イ","■","■","■","■","■"]
[290,24,"三重県",205,"桑名郡","桑名市（旧長島町)",6,"A4","H4",34,30,null,"桑名市","桑名市","■","■","■","■","■","○","○",null,null,null,null,null,null,null,null,null,"イ","■","■","■","■","■"]
[280,24,"三重県",207,null,"鈴鹿市（積雪30cm地域)",6,"A4","H5",34,30,null,"鈴鹿市","鈴鹿市","■","■","□","■","■","○","○",null,null,null,null,null,null,null,null,null,"ロ","■","■","■","■","■",null,null,null,null,null,null,null,null,null,null,null,"A"]
[281,24,"三重県",207,null,"鈴鹿市（積雪40cm地域)",6,"A4","H5",34,40,null,"鈴鹿市","鈴鹿市","■","■","□","■","■","○","○",null,null,null,null,null,null,null,null,null,"ロ","■","■","■","■","■",null,null,null,null,null,null,null,null,null,null,null,"A"]
[282,24,"三重県",207,null,"鈴鹿市（積雪50cm地域)",6,"A4","H5",34,50,null,"鈴鹿市","鈴鹿市","■","■","□","■","■","○","○",null,null,null,null,null,null,null,null,null,"ロ","■","■","■","■","■",null,null,null,null,null,null,null,null,null,null,null,"A"]
[283,24,"三重県",208,null,"名張市",5,"A3","H2",34,40,null,null,"名張市","■","■","■","■","■","○","○","○",null,null,null,null,null,null,null,null,"イ","■","■","■","■","■",null,null,null,null,null,null,null,null,null,null,null,"B"]
[284,24,"三重県",209,null,"尾鷲市",6,"A4","H5",34,25,null,null,null,"■","■","■","■","■","○","○",null,null,null,null,null,null,null,null,null,"イ","■","■","■","■","■",null,null,null,null,null,null,null,null,null,null,null,"C"]
[285,24,"三重県",210,null,"亀山市（旧亀山市)",6,"A4","H5",34,40,null,null,"亀山市","■","■","□","■","■","○","○","○",null,null,null,null,null,null,null,null,"ロ","■","■","■","■","■",null,null,null,null,null,null,null,null,null,null,null,"B"]
[301,24,"三重県",210,"鈴鹿郡","亀山市（旧関町)",6,"A3","H2",34,40,null,null,"亀山市","■","■","□","■","■","○","○","○",null,null,null,null,null,null,null,null,"ロ","■","■","■","■","■",null,null,null,null,null,null,null,null,null,null,null,"B"]
[286,24,"三重県",211,null,"鳥羽市",6,"A4","H3",34,30,null,null,null,"■","■","■","■","■","○","○",null,null,null,null,null,null,null,null,null,"イ","■","■","■","■","■",null,null,null,null,null,null,null,null,null,null,null,"C"]
[287,24,"三重県",212,null,"熊野市（旧熊野市)",7,"A4","H5",34,25,null,null,null,"■","■","■","■","■","○","○",null,null,null,null,null,null,null,null,null,"イ","■","■","■","■","■",null,null,null,null,null,null,null,null,null,null,null,"D"]
[343,24,"三重県",212,"南牟婁郡","熊野市（旧紀和町)",7,"A3","H4",34,30,null,null,null,"■","■","■","■","■","○","○",null,null,null,null,null,null,null,null,null,"イ","■","■","■","■","■",null,null,null,null,null,null,null,null,null,null,null,"D"]
[292,24,"三重県",214,"員弁郡","いなべ市（旧北勢町)",5,"A4","H5",34,50,null,null,null,"■","■","■","■","■","○","○",null,null,null,null,null,null,null,null,null,"イ","■","■","■","■","■",null,null,null,null,null,null,null,null,null,null,null,1]
[293,24,"三重県",214,"員弁郡","いなべ市（旧員弁町)",6,"A4","H4",34,40,null,null,null,"■","■","■","■","■","○","○",null,null,null,null,null,null,null,null,null,"イ","■","■","■","■","■",null,null,null,null,null,null,null,null,null,null,null,1]
[294,24,"三重県",214,"員弁郡","いなべ市（旧大安町)",6,"A4","H5",34,40,null,null,null,"■","■","■","■","■","○","○",null,null,null,null,null,null,null,null,null,"イ","■","■","■","■","■",null,null,null,null,null,null,null,null,null,null,null,1]
[296,24,"三重県",214,"員弁郡","いなべ市（旧藤原町)",5,"A4","H5",34,50,null,null,null,"■","■","■","■","■","○","○",null,null,null,null,null,null,null,null,null,"イ","■","■","■","■","■",null,null,null,null,null,null,null,null,null,null,null,1]
[334,24,"三重県",215,"志摩郡","志摩市（旧浜島町)",6,"A4","H1",34,25,null,null,null,"■","■","■","■","■","○","○",null,null,null,null,null,null,null,null,null,"イ","■","■","■","■","■",null,null,null,null,null,null,null,null,null,null,null,"C"]
[335,24,"三重県",215,"志摩郡","志摩市（旧大王町)",6,"A5","H2",34,25,null,null,null,"■","■","■","■","■","○","○",null,null,null,null,null,null,null,null,null,"イ","■","■","■","■","■",null,null,null,null,null,null,null,null,null,null,null,"C"]
[336,24,"三重県",215,"志摩郡","志摩市（旧志摩町)",6,"A5","H2",34,25,null,null,null,"■","■","■","■","■","○","○",null,null,null,null,null,null,null,null,null,"イ","■","■","■","■","■",null,null,null,null,null,null,null,null,null,null,null,"C"]
[337,24,"三重県",215,"志摩郡","志摩市（旧阿児町)",6,"A5","H3",34,25,null,null,null,"■","■","■","■","■","○","○",null,null,null,null,null,null,null,null,null,"イ","■","■","■","■","■",null,null,null,null,null,null,null,null,null,null,null,"C"]
[338,24,"三重県",215,"志摩郡","志摩市（旧磯部町)",6,"A4","H3",34,25,null,null,null,"■","■","■","■","■","○","○",null,null,null,null,null,null,null,null,null,"イ","■","■","■","■","■",null,null,null,null,null,null,null,null,null,null,null,"C"]
[279,24,"三重県",216,null,"伊賀市（旧上野市)",5,"A3","H2",34,40,null,null,"伊賀市","■","■","■","■","■","○","○",null,null,null,null,null,null,null,null,null,"イ","■","■","■","■","■",null,null,null,null,null,null,null,null,null,null,null,"B"]
[329,24,"三重県",216,"阿山郡","伊賀市（旧伊賀町)",5,"A3","H2",34,40,null,null,"伊賀市","■","■","■","■","■","○","○",null,null,null,null,null,null,null,null,null,"イ","■","■","■","■","■",null,null,null,null,null,null,null,null,null,null,null,"B"]
[330,24,"三重県",216,"阿山郡","伊賀市（旧島ケ原村)",5,"A3","H2",34,40,null,null,"伊賀市","■","■","■","■","■","○","○",null,null,null,null,null,null,null,null,null,"イ","■","■","■","■","■",null,null,null,null,null,null,null,null,null,null,null,"B"]
[331,24,"三重県",216,"阿山郡","伊賀市（旧阿山町)",5,"A3","H2",34,40,null,null,"伊賀市","■","■","■","■","■","○","○",null,null,null,null,null,null,null,null,null,"イ","■","■","■","■","■",null,null,null,null,null,null,null,null,null,null,null,"B"]
[332,24,"三重県",216,"阿山郡","伊賀市（旧大山田村)",5,"A3","H2",34,40,null,null,"伊賀市","■","■","■","■","■","○","○",null,null,null,null,null,null,null,null,null,"イ","■","■","■","■","■",null,null,null,null,null,null,null,null,null,null,null,"B"]
[333,24,"三重県",216,"名賀郡","伊賀市（旧青山町)",5,"A3","H2",34,40,null,null,"伊賀市","■","■","■","■","■","○","○",null,null,null,null,null,null,null,null,null,"イ","■","■","■","■","■",null,null,null,null,null,null,null,null,null,null,null,"B"]
[291,24,"三重県",303,"桑名郡","木曽岬町",6,"A4","H4",34,30,null,null,null,"■","■","■","■","■","○","○",null,null,null,null,null,null,null,null,null,"イ","■","■","■","■","■"]
[295,24,"三重県",324,"員弁郡","東員町",6,"A4","H4",34,40,null,null,null,"■","■","■","■","■","○","○",null,null,null,null,null,null,null,null,null,"イ","■","■","■","■","■"]
[297,24,"三重県",341,"三重郡","菰野町",6,"A4","H5",34,40,null,null,null,"■","■","■","■","■","○","○",null,null,null,null,null,null,null,null,null,"イ","■","■","■","■","■",null,null,null,null,null,null,null,null,null,null,null,1]
[299,24,"三重県",343,"三重郡","朝日町",6,"A4","H4",34,30,null,null,null,"■","■","■","■","■","○","○",null,null,null,null,null,null,null,null,null,"イ","■","■","■","■","■"]
[300,24,"三重県",344,"三重郡","川越町",6,"A4","H4",34,30,null,null,null,"■","■","■","■","■","○","○",null,null,null,null,null,null,null,null,null,"イ","■","■","■","■","■"]
[314,24,"三重県",441,"多気郡","多気町（旧多気町)",6,"A4","H4",34,30,null,null,null,"■","■","■","■","■","○","○",null,null,null,null,null,null,null,null,null,"イ","■","■","■","■","■",null,null,null,null,null,null,null,null,null,null,null,"C"]
[317,24,"三重県",441,"多気郡","多気町（旧勢和村)",6,"A3","H4",34,30,null,null,null,"■","■","■","■","■","○","○",null,null,null,null,null,null,null,null,null,"イ","■","■","■","■","■",null,null,null,null,null,null,null,null,null,null,null,"C"]
[315,24,"三重県",442,"多気郡","明和町",6,"A4","H4",34,30,null,null,null,"■","■","■","■","■","○","○",null,null,null,null,null,null,null,null,null,"イ","■","■","■","■","■",null,null,null,null,null,null,null,null,null,null,null,"C"]
[316,24,"三重県",443,"多気郡","大台町（旧大台町)",6,"A3","H4",34,30,null,null,null,"■","■","■","■","■","○","○",null,null,null,null,null,null,null,null,null,"イ","■","■","■","■","■",null,null,null,null,null,null,null,null,null,null,null,"C"]
[318,24,"三重県",443,"多気郡","大台町（旧宮川村)",6,"A3","H5",34,40,null,null,null,"■","■","■","■","■","○","○",null,null,null,null,null,null,null,null,null,"イ","■","■","■","■","■",null,null,null,null,null,null,null,null,null,null,null,"C"]
[319,24,"三重県",461,"度会郡","玉城町",6,"A4","H4",34,30,null,null,null,"■","■","■","■","■","○","○",null,null,null,null,null,null,null,null,null,"イ","■","■","■","■","■",null,null,null,null,null,null,null,null,null,null,null,"C"]
[328,24,"三重県",470,"度会郡","度会町",6,"A4","H4",34,30,null,null,null,"■","■","■","■","■","○","○",null,null,null,null,null,null,null,null,null,"イ","■","■","■","■","■",null,null,null,null,null,null,null,null,null,null,null,"C"]
[324,24,"三重県",471,"度会郡","大紀町（旧大宮町)",6,"A3","H4",34,30,null,null,null,"■","■","■","■","■","○","○",null,null,null,null,null,null,null,null,null,"イ","■","■","■","■","■",null,null,null,null,null,null,null,null,null,null,null,"C"]
[325,24,"三重県",471,"度会郡","大紀町（旧紀勢町)",6,"A4","H4",34,30,null,null,null,"■","■","■","■","■","○","○",null,null,null,null,null,null,null,null,null,"イ","■","■","■","■","■",null,null,null,null,null,null,null,null,null,null,null,"C"]
[327,24,"三重県",471,"度会郡","大紀町（旧大内山村)",6,"A4","H5",34,40,null,null,null,"■","■","■","■","■","○","○",null,null,null,null,null,null,null,null,null,"イ","■","■","■","■","■",null,null,null,null,null,null,null,null,null,null,null,"C"]
[322,24,"三重県",472,"度会郡","南伊勢町（旧南勢町)",6,"A4","H3",34,25,null,null,null,"■","■","■","■","■","○","○",null,null,null,null,null,null,null,null,null,"イ","■","■","■","■","■",null,null,null,null,null,null,null,null,null,null,null,"C"]
[323,24,"三重県",472,"度会郡","南伊勢町（旧南島町)",6,"A4","H2",34,25,null,null,null,"■","■","■","■","■","○","○",null,null,null,null,null,null,null,null,null,"イ","■","■","■","■","■",null,null,null,null,null,null,null,null,null,null,null,"C"]
[339,24,"三重県",543,"北牟婁郡","紀北町（旧紀伊長島町)",6,"A4","H4",34,25,null,null,null,"■","■","■","■","■","○","○",null,null,null,null,null,null,null,null,null,"イ","■","■","■","■","■",null,null,null,null,null,null,null,null,null,null,null,"C"]
[340,24,"三重県",543,"北牟婁郡","紀北町（旧海山町)",6,"A4","H5",34,25,null,null,null,"■","■","■","■","■","○","○",null,null,null,null,null,null,null,null,null,"イ","■","■","■","■","■",null,null,null,null,null,null,null,null,null,null,null,"C"]
[341,24,"三重県",561,"南牟婁郡","御浜町",7,"A4","H5",34,25,null,null,null,"■","■","■","■","■","○","○",null,null,null,null,null,null,null,null,null,"イ","■","■","■","■","■",null,null,null,null,null,null,null,null,null,null,null,"D"]
[342,24,"三重県",562,"南牟婁郡","紀宝町（旧紀宝町)",7,"A4","H5",34,25,null,null,null,"■","■","■","■","■","○","○",null,null,null,null,null,null,null,null,null,"イ","■","■","■","■","■",null,null,null,null,null,null,null,null,null,null,null,"D"]
[344,24,"三重県",562,"南牟婁郡","紀宝町（旧鵜殿村)",7,"A4","H5",34,25,null,null,null,"■","■","■","■","■","○","○",null,null,null,null,null,null,null,null,null,"イ","■","■","■","■","■",null,null,null,null,null,null,null,null,null,null,null,"D"]

{"sheet":"項目リスト","index":6,"n_rows":69,"n_cols":22,"rows_kept":69,"cut":false,"hidden":true,"merged":[]}
["確認申請ファイルファージョン","申請書",null,null,null,null,null,null,null,null,null,null,null,null,null,"工事届",null,"住まい給付金"]
["Ver","資格","一級","二級","木造","施工者","事務所登録","作成図書","判定機関","判定機関所在地","用途地域","建物構造","用途区分（建築物）","名称（建築物）","特定工程","主要用途工事届１","主要用途工事届２","住宅性能","確認申請","確認済証","評価書等","住宅の建て方"]
["2021/01/01 Ver.13.0","一級","大臣","愛知県知事","愛知県知事","なし","愛知県",null,"㈱建築構造センター","愛知県名古屋市中区","第一種低層住居専用地域",null,"08010","一戸建ての住宅","屋根ふき工事及び構造耐力上主要な軸組（枠組壁工法の場合は、耐力壁）の工事","01",11,"断熱等性能等級の等級４","当センターに申請済","確認建築愛建住セ","設計住宅性能評価書","一戸建ての住宅"]
["2020/09/07 Ver.12.0","二級",null,"岐阜県知事","岐阜県知事","大臣","岐阜県","設計図書一式","㈱確認サービス","愛知県名古屋市中区","第二種低層住居専用地域","木造","08020","長屋","鉄骨造の部分において、初めて工事を施工する階の建方工事","02",12,"一次エネルギー消費量等級４以上","当センターに申請予定","確変建築愛建住セ","長期優良住宅建築等計画に係る技術的審査適合証","共同住宅等"]
["2020/04/17 Ver.11.0","木造",null,"三重県知事","三重県知事","愛知県知事","三重県","設計図書（意匠図）","㈱東京建築検査機構","愛知県名古屋市中区","第一種中高層住居専用地域","在来木造","08030","共同住宅","RC造の部分において、初めて工事を施工する階の直上の階の主要構造部である床版の配筋（プレキャストコンクリート部材にあっては、接合部）の工事","03",13,"劣化対策等級３で、かつ、維持管理対策等級２以上（共同住宅等については一定の更新対策が必要）","他機関に申請済み（確認済証を添付）",null,"住宅性能証明書"]
["2019/07/17 Ver.10.0",null,null,"静岡県知事","静岡県知事","岐阜県知事","静岡県","設計図書(構造図）","㈱グッド・アイズ建築検査機構","東京都新宿区","第二種中高層住居専用地域","木造（枠組壁工法）","08040","寄宿舎","2階の床及びこれを支持するはりに鉄筋を配置する工事","04",14,"耐震等級（構造躯体の倒壊等防止）の等級２",null,null,"低炭素建築物新築等計画に係る技術的審査適合証"]
["2019/05/01 Ver.9.2",null,null,"愛媛県知事","愛媛県知事","三重県知事","愛媛県","設計図書（構造計算書）","(一財)日本建築センター　本部","東京都千代田区","第一種住居地域","丸太組構法","08050","下宿","構造耐力上主要な軸組を構成する各部材を接続する接合部の工事","05",15,"耐震等級（構造躯体の倒壊等防止）の等級３",null,null,"BELS評価書"]
["2018/10/26 Ver.9.1",null,null,"茨城県知事","茨城県知事","静岡県知事","茨城県",null,"(一財)日本建築センター　大阪事務所","大阪府大阪市中央区","第二種住居地域","木質系パネル造","08060","住宅で事務所、店舗その他これらに類する用途を兼ねるもの",null,null,16,"免震建築物",null,null,"性能向上計画認定技術的審査又は認定表示に係る認定技術的審査適合証"]
["2018/09/25 Ver.9.0",null,null,"岡山県知事","岡山県知事","愛媛県知事","岡山県",null,"(一財)ベターリビング　本部","東京都千代田区","準住居地域","鉄骨造","08070","幼稚園",null,null,17,"高齢者等配慮対策等級３以上の住宅",null,null,"フラット35S適合証明書"]
["2017/04/01 Ver.8.0",null,null,"沖縄県知事","沖縄県知事","茨城県知事","沖縄県",null,"(一財)ベターリビング　名古屋事務所","愛知県名古屋市中区","近隣商業地域","鉄筋コンクリート造","08080","小学校",null,null,18]
["2016/10/01 Ver.7.0",null,null,"岩手県知事","岩手県知事","岡山県知事","岩手県",null,"(一財)日本建築設備・昇降機センター","東京都港区","商業地域","鉄骨鉄筋コンクリート造","08090","中学校又は高等学校",null,null,19]
["2016/6/10 Ver.6.9",null,null,"宮崎県知事","宮崎県知事","沖縄県知事","宮崎県",null,"(一財)住宅金融普及協会","東京都文京区","準工業地域","壁式鉄筋コンクリート造","08100","養護学校、盲学校又は聾学校",null,null,20]
["2019/05/01 Ver.9.2",null,null,"宮城県知事","宮城県知事","岩手県知事","宮城県",null,null,null,"工業地域","プレキャストコンクリート造","08110","大学又は高等専門学校",null,null,21]
[null,null,null,"京都府知事","京都府知事","宮崎県知事","京都府",null,null,null,"工業専用地域",null,"08120","専修学校",null,null,22]
[null,null,null,"熊本県知事","熊本県知事","宮城県知事","熊本県",null,null,null,"指定なし",null,"08130","各種学校",null,null,23]
[null,null,null,"群馬県知事","群馬県知事","京都府知事","群馬県",null,null,null,null,null,"08132","幼保連携型認定こども園",null,null,24]
[null,null,null,"広島県知事","広島県知事","熊本県知事","広島県",null,null,null,null,null,"08140","図書館その他これらに類するもの",null,null,25]
[null,null,null,"香川県知事","香川県知事","群馬県知事","香川県",null,null,null,null,null,"08150","博物館その他これらに類するもの",null,null,26]
[null,null,null,"高知県知事","高知県知事","広島県知事","高知県",null,null,null,null,null,"08160","神社、寺院、教会その他これらに類するもの",null,null,27]
[null,null,null,"佐賀県知事","佐賀県知事","香川県知事","佐賀県",null,null,null,null,null,"08170","老人ホーム、身体障害者福祉ホームその他これに類するもの",null,null,28]
[null,null,null,"埼玉県知事","埼玉県知事","高知県知事","埼玉県",null,null,null,null,null,"08180","保育所その他これに類するもの",null,null,29]
[null,null,null,"山形県知事","山形県知事","佐賀県知事","山形県",null,null,null,null,null,"08190","助産所",null,null,30]
[null,null,null,"山口県知事","山口県知事","埼玉県知事","山口県",null,null,null,null,null,"08210","児童福祉施設等（前３項に掲げるものを除く。）",null,null,31]
[null,null,null,"山梨県知事","山梨県知事","山形県知事","山梨県",null,null,null,null,null,"08220","隣保館",null,null,32]
[null,null,null,"滋賀県知事","滋賀県知事","山口県知事","滋賀県",null,null,null,null,null,"08230","公衆浴場（個室付浴場業に係る公衆浴場を除く。）",null,null,33]
[null,null,null,"鹿児島県知事","鹿児島県知事","山梨県知事","鹿児島県",null,null,null,null,null,"08240","診療所（患者の収容施設のあるものに限る。）",null,null,34]
[null,null,null,"秋田県知事","秋田県知事","滋賀県知事","秋田県",null,null,null,null,null,"08250","診療所（患者の収容施設のないものに限る。）",null,null,35]
[null,null,null,"新潟県知事","新潟県知事","鹿児島県知事","新潟県",null,null,null,null,null,"08260","病院",null,null,36]
[null,null,null,"神奈川県知事","神奈川県知事","秋田県知事","神奈川県",null,null,null,null,null,"08270","巡査派出所",null,null,37]
[null,null,null,"青森県知事","青森県知事","新潟県知事","青森県",null,null,null,null,null,"08280","公衆電話所",null,null,38]
[null,null,null,"石川県知事","石川県知事","神奈川県知事","石川県",null,null,null,null,null,"08290","郵便局",null,null,39]
[null,null,null,"千葉県知事","千葉県知事","青森県知事","千葉県",null,null,null,null,null,"08300","地方公共団体の支庁又は支所",null,null,40]
[null,null,null,"大阪府知事","大阪府知事","石川県知事","大阪府",null,null,null,null,null,"08310","公衆便所、休憩所又は路線バスの停留所の上屋",null,null,41]
[null,null,null,"大分県知事","大分県知事","千葉県知事","大分県",null,null,null,null,null,"08320","建築基準法施行令第130条の4第5号に基づき国土交通大臣が指定する施設",null,null,42]
[null,null,null,"長崎県知事","長崎県知事","大阪府知事","長崎県",null,null,null,null,null,"08330","税務署、警察署、保健所又は消防署その他これらに類するもの",null,null,43]
[null,null,null,"長野県知事","長野県知事","大分県知事","長野県",null,null,null,null,null,"08340","工場（自動車修理工場を除く。）",null,null,44]
[null,null,null,"鳥取県知事","鳥取県知事","長崎県知事","鳥取県",null,null,null,null,null,"08350","自動車修理工場",null,null,45]
[null,null,null,"島根県知事","島根県知事","長野県知事","島根県",null,null,null,null,null,"08360","危険物の貯蔵又は処理に供するもの",null,null,46]
[null,null,null,"東京都知事","東京都知事","鳥取県知事","東京都",null,null,null,null,null,"08370","ボーリング場、スケート場、水泳場、スキー場、ゴルフ練習場又はバッティング練習場",null,null,99]
[null,null,null,"徳島県知事","徳島県知事","島根県知事","徳島県",null,null,null,null,null,"08380","体育館又はスポーツの練習場（前項に掲げるものを除く。）"]
[null,null,null,"栃木県知事","栃木県知事","東京都知事","栃木県",null,null,null,null,null,"08390","マージャン屋、ぱちんこ屋、射的場、勝馬投票券発売所、場外車券売り場その他これらに類するもの又はカラオケボックスその他これらに類するもの"]
[null,null,null,"奈良県知事","奈良県知事","徳島県知事","奈良県",null,null,null,null,null,"08400","ホテル又は旅館"]
[null,null,null,"富山県知事","富山県知事","栃木県知事","富山県",null,null,null,null,null,"08410","自動車教習所"]
[null,null,null,"福井県知事","福井県知事","奈良県知事","福井県",null,null,null,null,null,"08420","畜舎"]
[null,null,null,"福岡県知事","福岡県知事","富山県知事","福岡県",null,null,null,null,null,"08430","堆肥舎又は水産物の増殖場若しくは養殖場"]
[null,null,null,"福島県知事","福島県知事","福井県知事","福島県",null,null,null,null,null,"08438","日用品の販売を主たる目的とする店舗"]
[null,null,null,"兵庫県知事","兵庫県知事","福岡県知事","兵庫県",null,null,null,null,null,"08440","百貨店、マーケットその他の物品販売業を営む店舗（前項に掲げるもの及び専ら性的好奇心をおそる写真その他の物品の販売を行うものを除く。）"]
[null,null,null,"北海道知事","北海道知事","福島県知事","北海道",null,null,null,null,null,"08450","飲食店（次項に掲げるものを除く。）"]
[null,null,null,"和歌山県知事","和歌山県知事","兵庫県知事","和歌山県",null,null,null,null,null,"08452","食堂又は喫茶店"]
[null,null,null,null,null,"北海道知事",null,null,null,null,null,null,"08456","理髪店、美容院、クリーニング取次店、質屋、貸衣装屋、貸本屋その他これらに類するサービス業を営む店舗、洋服店、畳屋、建具屋、自転車店、家庭電気器具店その他これらに類するサービス業を営む店舗で作業場の床面積の合計が50平方メートル以内のもの（原動機を使用する場合にあっては、その出力の合計が0.75キロワット以下のものに限る。）、自家販売のために食品製造業を営むパン屋、米屋、豆腐屋、菓子屋その他これらに類するもので作業場の床面積の合計が50平方メートル以内のもの（原動機を使用する場合にあっては、その出力の合計が0.75キロワット以下のものに限る。）又は学習塾、華道教室、囲碁教室その他これらに類する施設"]
[null,null,null,null,null,"和歌山県知事",null,null,null,null,null,null,"08458","銀行の支店、損害保険代理店、宅地建物取引業を営む店舗その他これらに類するサービス業を営む店舗"]
[null,null,null,null,null,null,null,null,null,null,null,null,"08460","物品販売業を営む店舗以外の店舗（前2項に掲げるものを除く。） "]
[null,null,null,null,null,null,null,null,null,null,null,null,"08470","事務所"]
[null,null,null,null,null,null,null,null,null,null,null,null,"08480","映画スタジオ又はテレビスタジオ"]
[null,null,null,null,null,null,null,null,null,null,null,null,"08490","自動車車庫"]
[null,null,null,null,null,null,null,null,null,null,null,null,"08500","自転車駐輪場"]
[null,null,null,null,null,null,null,null,null,null,null,null,"08510","倉庫業を営む倉庫"]
[null,null,null,null,null,null,null,null,null,null,null,null,"08520","倉庫業を営まない倉庫"]
[null,null,null,null,null,null,null,null,null,null,null,null,"08530","劇場、映画館又は演芸場"]
[null,null,null,null,null,null,null,null,null,null,null,null,"08540","観覧場"]
[null,null,null,null,null,null,null,null,null,null,null,null,"08550","公会堂又は集会場"]
[null,null,null,null,null,null,null,null,null,null,null,null,"08560","展示場"]
[null,null,null,null,null,null,null,null,null,null,null,null,"08570","料理店"]
[null,null,null,null,null,null,null,null,null,null,null,null,"08580","キャバレー、カフェー、ナイトクラブ又はバー"]
[null,null,null,null,null,null,null,null,null,null,null,null,"08590","ダンスホール"]
[null,null,null,null,null,null,null,null,null,null,null,null,"08600","個室付浴場業に係る公衆浴場、ヌードスタジオ、のぞき劇場、ストリップ劇場、専ら異性を同伴する客の休憩の用に供する施設、専ら性的好奇心をそそる写真その他の物品の販売を目的とする店舗その他これらに類するもの"]
[null,null,null,null,null,null,null,null,null,null,null,null,"08610","卸売市場"]
[null,null,null,null,null,null,null,null,null,null,null,null,"08620","火葬場又はと畜場、汚物処理場、ごみ焼却場その他の処理施設"]
[null,null,null,null,null,null,null,null,null,null,null,null,"08990","その他 "]